Cogmind - Beta 16.1 @@@ ROGUE MODE // 2026.02.14 @ 02:01:08 Player: +Jones Result: Destroyed by S-43 Plague with Heavy Machine Gun Performance ------------- Evolutions (9) 4500 Regions Visited (30) 6000 Robots Destroyed (593) 2965 Value Destroyed (30738) 30738 Prototype IDs (62) 1240 Alien Tech Used (0) 0 Bonus (14239) 14239 TOTAL SCORE: 59682 Bonus ------- High Alert Combat Kills 5258 Follower Combat Kills 2856 Hunted by Unchained 1000 Entered Garrisons 800 Network Hubs Disabled 200 Met Data Miner 300 Acquired ECA 300 Met Warlord at Base 500 MAIN.C Attacked Warlord 500 Warlord Defense Kills 1022 A7 Reached Mainframe 300 Met Warlord at Research 2000 Friendly Fire -797 Cogmind --------- Core Integrity 0/1600 Matter 165/300 Energy 100/100 System Corruption 58% Temperature Cool (0) Movement Core (50) Location -1/Access Parts ------- > --- POWER (3) -------- (None) > --- PROPULSION (6) --- (None) > --- UTILITY (11) ----- (None) > --- WEAPON (5) ------- (None) > --- INVENTORY (5) ---- Minesniffer Drone Bay (10/10) Nova Cannon Gamma Bomb Array Advanced Micro-nuke Launcher Advanced Remote Datajack Peak State ------------ > --- POWER ------------ Reinforced Antimatter Reactor Particle Reactor Particle Reactor > --- PROPULSION ------- Improved Heavy Treads Improved Heavy Treads Advanced Heavy Treads > --- UTILITY ---------- Experimental Heat Sink Huge Storage Unit Core Analyzer Advanced Kinecellerator Advanced Phase Shifter Layered Medium Armor Plating Centrium Light Armor Plating Advanced Remote Force Field Hacking Suite Advanced Hacking Suite Improved Corruption Screen > --- WEAPON ----------- KE Penetrator KE Penetrator KE Penetrator Railgun Helical Railgun > --- INVENTORY -------- Advanced Heavy Siege Treads Advanced Heavy Siege Treads Advanced Heavy Siege Treads Experimental Energy Well Matter Compressor Advanced Point Defense System Improved Dynamic Insulation System Minesniffer Drone Bay Nova Cannon KE Penetrator Railgun Railgun Gamma Bomb Array Precision Rocket Launcher Fusion Bomb Launcher Advanced Micro-nuke Launcher Advanced Remote Datajack Improved Plasma Cutter Gravity Flail [Rating: 185] Favorites ----------- Power Reinforced Fission Core Engine Hybrid Deuterium Engine Power Core Reinforced Fission Core Reactor Quantum Reactor Propulsion Wheel Treads Improved Heavy Treads Leg Biometal Leg Wheel Wheel Utility Huge Storage Unit Device Seismic Detector Storage Huge Storage Unit Processor Core Analyzer Hackware Advanced Hacking Suite Protection Improved Medium Armor Plating Weapon KE Penetrator Energy Gun Wave Gun Energy Cannon Heavy Phase Cannon Ballistic Gun KE Penetrator Ballistic Cannon Magnetic Acceleration Cannon Launcher Shock Bomb Launcher Special Weapon Mining Laser Impact Weapon Gravity Flail Slashing Weapon Ripper Build | -11 -10 -10 -8 -8 -8 -8 -7 -7 -7 -7 -6 -6 -6 -5 -5 -5 -5 -5 -5 -5 -4 -4 -4 -4 -3 -3 -3 -3 -2 -1 ------- Run | Yrd Mat Sub Mat Gar Mat Gar Fac Low Low Dat Pro Fac Gar Fac Was Fac Ext Cet Arc Hub Fac Upp Upp War Pro Res Gar Res Res Acc Slots Evolved 18 | . . . 4 . . . 2 . . . . 2 . 2 . . . . . . 2 . . . . 2 . . 2 2 Power 2 | . . . . . . . . . . . . . . 1 . . . . . . . . . . . . . . . 1 Propulsion 4 | . . . 2 . . . 1 . . . . . . . . . . . . . . . . . . 1 . . . . Utility 9 | . . . 1 . . . 1 . . . . 2 . 1 . . . . . . 1 . . . . 1 . . 1 1 Weapon 3 | . . . 1 . . . . . . . . . . . . . . . . . 1 . . . . . . . 1 . Parts Attached 446 | 7 7 12 20 10 19 9 2 6 5 . 5 9 10 39 . 29 27 4 5 4 57 7 4 11 4 26 48 31 18 11 Power 38 | 1 . 2 4 . 1 . . . . . . . 1 6 . 2 4 1 . . 7 . . . 1 1 4 1 . 2 Engine 13 | 1 . 2 4 . 1 . . . . . . . 1 3 . . 1 . . . . . . . . . . . . . Core 13 | . . . . . . . . . . . . . . 3 . 2 3 . . . 5 . . . . . . . . . Reactor 12 | . . . . . . . . . . . . . . . . . . 1 . . 2 . . . 1 1 4 1 . 2 Propulsion 112 | 2 1 3 3 3 9 6 . 2 1 . 1 4 2 16 . 6 10 1 2 . 9 . 2 1 . 5 13 6 1 3 Treads 55 | 2 1 1 1 2 6 3 . 2 . . . . 1 5 . 1 6 1 1 . 1 . 1 . . 4 6 6 1 3 Leg 7 | . . . . . . . . . . . . . . . . . . . . . . . . . . . 7 . . . Wheel 50 | . . 2 2 1 3 3 . . 1 . 1 4 1 11 . 5 4 . 1 . 8 . 1 1 . 1 . . . . Hover . | . . . . . . . . . . . . . . . . . . . . . . . . . . . . . . . Flight . | . . . . . . . . . . . . . . . . . . . . . . . . . . . . . . . Utility 167 | 2 3 1 3 3 7 1 . 4 1 . 2 1 2 13 . 11 7 1 2 3 27 4 2 7 2 10 16 19 10 3 Device 83 | 1 1 . . 1 1 . . 1 1 . . 1 2 7 . 6 4 . . 1 17 2 1 6 1 3 7 14 4 1 Storage 15 | 1 2 1 . . 1 . . . . . . . . . . 1 . . . . 3 . . . . 2 2 . 2 . Processor 18 | . . . . . . . . . . . . . . 3 . 1 . 1 . . 3 . 1 1 1 1 3 1 2 . Hackware 9 | . . . . . 1 . . . . . . . . . . 2 . . . 2 1 . . . . 1 . . . 2 Protection 42 | . . . 3 2 4 1 . 3 . . 2 . . 3 . 1 3 . 2 . 3 2 . . . 3 4 4 2 . Artifact . | . . . . . . . . . . . . . . . . . . . . . . . . . . . . . . . Weapon 129 | 2 3 6 10 4 2 2 2 . 3 . 2 4 5 4 . 10 6 1 1 1 14 3 . 3 1 10 15 5 7 3 Energy Gun 22 | 1 1 . 2 . . . . . . . 1 1 . . . 6 2 . 1 . 1 2 . 3 1 . . . . . Energy Cannon 9 | . . 3 . . . . . . . . . . . . . 1 . . . . 1 . . . . . 3 1 . . Ballistic Gun 76 | 1 1 1 4 3 . 2 2 . 3 . . 3 5 3 . . 3 1 . . 9 1 . . . 8 12 4 7 3 Ballistic Cannon 4 | . . . 1 . 1 . . . . . . . . . . . . . . 1 1 . . . . . . . . . Launcher 12 | . . 2 2 1 1 . . . . . 1 . . 1 . 2 1 . . . . . . . . 1 . . . . Special Weapon 2 | . 1 . . . . . . . . . . . . . . . . . . . 1 . . . . . . . . . Impact Weapon 1 | . . . . . . . . . . . . . . . . . . . . . . . . . . 1 . . . . Slashing Weapon 3 | . . . 1 . . . . . . . . . . . . 1 . . . . 1 . . . . . . . . . Piercing Weapon . | . . . . . . . . . . . . . . . . . . . . . . . . . . . . . . . Special Melee Weapon . | . . . . . . . . . . . . . . . . . . . . . . . . . . . . . . . Unidentified Prototypes 32 | . . . 2 . . . . . . . . 1 . 4 . 4 . 1 2 1 1 . . 6 . 4 . 1 4 1 Corrupted Parts 1 | . . . . . . . . . . . . . . . . . . . . . . . . . . . 1 . . . System Corruption 4 | . . . . . . . . . . . . . . . . . . . . . . . . . . . 4 . . . Parts Lost 167 | . 1 2 2 1 . 5 1 1 1 . 9 7 3 18 . 13 15 . . 1 16 2 1 . . 4 27 4 2 31 Power 10 | . . 1 . . . . . . . . . . . 1 . 2 1 . . . 1 . . . . . 2 . . 2 Propulsion 41 | . . 1 2 . . 3 . . . . 4 2 1 7 . 3 5 . . 1 . . 1 . . . 5 . . 6 Utility 62 | . 1 . . . . . . 1 . . . 2 1 6 . 5 4 . . . 10 1 . . . 3 10 2 2 14 Weapon 54 | . . . . 1 . 2 1 . 1 . 5 3 1 4 . 3 5 . . . 5 1 . . . 1 10 2 . 9 Highest Loss Streak 27 | . 1 1 1 1 . 3 1 1 1 . 3 5 1 10 . 4 5 . . 1 6 1 1 . . 2 22 4 1 27 To Critical Strikes 7 | . . . . . . . . . . . 1 . . . . . 2 . . . . . . . . . 2 . . 2 Average Backups 20 | 1 8 14 16 19 22 23 23 22 19 19 16 18 22 20 21 21 20 23 22 23 22 23 23 23 22 22 22 23 22 18 Power . | . . . . 1 1 1 1 1 1 1 1 1 1 . 1 1 2 1 1 1 . . . . 1 . 1 1 1 . Propulsion 3 | . 2 3 5 5 6 5 5 5 4 4 3 4 6 6 6 4 3 4 2 1 2 1 . 1 1 1 1 2 4 2 Utility 8 | . 2 5 5 6 7 11 11 8 6 6 5 7 7 5 3 7 7 10 11 11 10 14 16 14 12 11 10 10 6 5 Weapon 6 | 1 3 5 5 7 6 6 5 6 6 6 5 3 5 7 8 6 5 5 5 7 5 5 4 5 5 5 7 7 8 7 Tool/Special . | . . . . . . . . . . . . . . . . . . . . . . . . . . . . . . . Unused Backups 72 | . 1 1 . 5 7 2 2 1 1 . . 3 5 9 . 6 3 4 1 1 3 . 1 2 . . 1 7 3 3 Power 6 | . . . . . . . . . . . . . . 1 . . 2 2 . . . . . . . . . 1 . . Propulsion 19 | . . . . 1 4 . 1 . . . . . 2 5 . 1 . 1 1 . . . . . . . 1 1 1 . Utility 25 | . . 1 . 1 3 1 1 1 . . . 1 1 2 . 2 1 . . 1 2 . 1 2 . . . 3 1 . Weapon 19 | . 1 . . 3 . 1 . . 1 . . 2 2 1 . 3 . 1 . . . . . . . . . 1 1 2 Tool/Special 3 | . . . . . . . . . . . . . . . . . . . . . 1 . . . . . . 1 . 1 Average Slot Usage (%) 90 | . 94 97 98 100 99 99 99 100 99 100 91 73 80 79 93 90 89 100 94 94 88 93 93 90 99 85 75 80 85 70 Engine 4 | . 14 12 9 9 9 9 7 7 7 7 7 6 6 8 . . 1 . . . . . . . . . . . . . Core 2 | . . . . . . . . . . . . . . 1 11 10 8 6 5 5 5 10 10 10 8 1 . . . . Reactor 2 | . . . . . . . . . . . . . . . . . . 4 5 5 4 . . . 1 4 6 9 8 9 Treads 11 | . 28 27 15 18 18 16 15 33 15 15 9 . 2 5 5 5 9 11 5 7 2 . 1 . . 10 8 14 12 10 Wheel 12 | . . . 19 17 18 19 23 4 22 23 21 20 23 15 17 16 13 17 17 14 16 21 18 21 26 6 . . . . Device 11 | . 9 14 8 1 6 1 6 3 7 15 6 9 13 16 11 13 18 17 17 11 16 14 16 15 13 7 9 18 17 14 Storage 6 | . 14 14 9 9 9 9 7 7 7 7 7 6 6 5 5 5 5 5 5 5 5 5 5 5 5 4 9 4 4 3 Processor 4 | . . . . . . . . . . . . . . 1 11 5 . 4 2 . 2 5 7 11 14 14 8 9 10 6 Hackware 3 | . . . . . 2 9 7 1 . . . . . . . 7 9 5 5 16 5 5 5 5 5 8 2 . . 5 Protection 6 | . . . 9 16 9 7 7 16 14 7 15 9 6 4 11 3 1 5 7 5 7 10 6 . 1 5 3 4 8 4 Energy Gun 2 | . 14 5 2 . . . . . . . 4 5 . 1 . 8 1 8 5 5 . 1 10 9 8 6 . . . . Energy Cannon 1 | . . 11 3 . . . . . . . . . . . . 1 3 . . . 1 . . . . . 2 . . . Ballistic Gun 13 | . 13 7 16 20 24 21 19 19 18 15 10 8 15 12 11 3 4 6 6 5 13 18 9 9 8 8 11 17 20 15 Slashing Weapon 1 | . . . 1 5 . 5 2 . . . 4 1 3 1 . 1 3 . 3 3 3 . . . 2 2 . . . . Peak Build Rating 185 | 7 9 13 30 33 35 39 42 47 45 44 48 72 74 92 82 90 87 89 105 103 130 130 134 142 144 168 164 152 169 185 Average Rating 86 | 5 7 11 24 31 30 37 41 45 42 44 44 65 67 78 81 83 71 85 99 99 119 126 128 126 140 157 138 146 164 148 On Entrance 77 | . 7 9 11 28 31 35 39 42 46 44 44 48 63 72 80 82 80 79 86 102 101 128 126 128 139 139 164 143 145 169 Avg Prop Armor Cover (%) 11 | . . . 11 10 12 12 13 12 13 15 7 6 8 9 9 11 14 11 10 12 9 . 10 . . 9 . . . . Naked Turns 100 | . . . . . . . . . . . . . . . . . . . . . . . . . . . . . . 100 Heaviest Build 213 | 15 31 55 72 72 105 105 109 108 109 105 111 118 120 135 139 136 151 140 146 146 175 171 162 176 180 173 182 181 193 213 Greatest Support 240 | 40 40 40 40 60 40 62 40 107 34 34 50 70 75 75 36 36 42 42 80 48 190 76 76 80 80 215 225 225 220 240 Greatest Overweight (x) 33 | . . 2 6 4 4 4 3 2 3 3 10 4 2 12 3 13 14 3 9 8 10 2 3 2 2 9 33 1 1 1 Average Overweight (x) 1 | . . . 2 2 2 2 2 . 3 3 2 1 1 3 3 3 3 3 5 2 2 2 2 2 2 . . . . . Largest Inventory Capacity 25 | 8 15 20 20 20 25 25 25 25 25 25 25 25 25 25 25 25 25 25 25 25 25 25 25 25 25 25 25 25 25 25 Average Capacity 23 | 7 11 15 20 20 22 25 25 25 25 25 25 25 25 25 25 25 25 25 25 25 25 25 25 25 25 25 25 25 25 22 Most Carried 25 | 4 11 15 20 20 25 25 25 25 23 22 22 23 25 25 24 25 25 25 25 25 25 25 25 25 25 25 25 25 25 25 Average Carried 21 | 1 8 14 16 19 22 24 24 23 21 22 19 18 23 23 23 23 20 24 23 24 23 24 24 24 24 23 22 24 24 20 Final Capacity 25 | 8 15 20 20 20 25 25 25 25 25 25 25 25 25 25 25 25 25 25 25 25 25 25 25 25 25 25 25 25 25 5 Final Carried 25 | 4 11 13 20 20 25 25 25 23 22 22 22 20 25 24 23 22 23 25 25 24 25 25 25 24 25 25 25 23 25 5 Class Distribution -------------------- 30% | Scavenger-Tank 17% | Mutant 16% | Tank 11% | Scavenger-Mutant 6% | Hacker-Tank 5% | Scientist-Skirmisher 4% | Scavenger-Skirmisher 3% | Scientist-Tank Dominant Class ---------------- Mutant | -10/Materials Mutant | -10/Subcaves Tank | -8/Materials Mutant | -8/Garrison Tank | -8/Materials Mutant | -8/Garrison Tank | -7/Factory Tank | -7/Lower Caves Tank | -7/Lower Caves Tank | -7/Data Miner Mutant | -6/Proximity Caves Tank | -6/Factory Scavenger-Mutant | -6/Garrison Scavenger-Tank | -5/Factory Scavenger-Tank | -5/Waste Scavenger-Tank | -5/Factory Scavenger-Mutant | -5/Extension Scavenger-Tank | -5/Cetus Scavenger-Mutant | -5/Archives Scavenger-Mutant | -5/Hub_04(d) Scavenger-Tank | -4/Factory Scavenger-Skirmisher | -4/Upper Caves Scientist-Skirmisher | -4/Upper Caves Scientist-Skirmisher | -4/Warlord Scientist-Tank | -3/Proximity Caves Hacker-Tank | -3/Research Hacker-Tank | -3/Garrison Scavenger-Tank | -3/Research Scavenger-Tank | -2/Research Scavenger-Tank | -1/Access Resources | -11 -10 -10 -8 -8 -8 -8 -7 -7 -7 -7 -6 -6 -6 -5 -5 -5 -5 -5 -5 -5 -4 -4 -4 -4 -3 -3 -3 -3 -2 -1 ----------- Run | Yrd Mat Sub Mat Gar Mat Gar Fac Low Low Dat Pro Fac Gar Fac Was Fac Ext Cet Arc Hub Fac Upp Upp War Pro Res Gar Res Res Acc Matter Collected 28342 | 288 354 483 826 1190 1524 1006 555 441 259 . 690 941 2739 2194 722 1227 1127 221 169 76 1977 1156 411 329 239 999 2264 2406 639 890 Remotely 727 | . . . . . . . . . . . . . . 727 . . . . . . . . . . . . . . . . Salvage Created 29653 | 113 446 154 1174 1338 1850 1577 360 279 423 . 500 838 1513 2029 919 2272 1278 99 32 166 2079 728 503 237 156 1933 2620 2355 204 1478 Parts 1365 | 6 26 12 63 53 105 72 15 7 22 . 12 34 63 89 . 102 45 4 5 8 102 21 17 10 11 94 133 141 13 80 Haulers Intercepted 10 | . 1 . 4 . 3 . . . . . . . . 1 . 1 . . . . . . . . . . . . . . Recyclers Shooed 14 | 1 . . . . . . . . . . . 2 . 3 . . 1 . . 2 3 . . . . . . 2 . . Parts Field Recycled . | . . . . . . . . . . . . . . . . . . . . . . . . . . . . . . . Retrieved Matter . | . . . . . . . . . . . . . . . . . . . . . . . . . . . . . . . Parts Self-Destructed 65 | . . 8 . . . . . 3 13 . 2 . . . . . . . . . . 19 12 . 8 . . . . . Prevented 24 | . . . . . . . . 6 13 . 5 . . . . . . . . . . . . . . . . . . . Parts Restored . | . . . . . . . . . . . . . . . . . . . . . . . . . . . . . . . Kills | -11 -10 -10 -8 -8 -8 -8 -7 -7 -7 -7 -6 -6 -6 -5 -5 -5 -5 -5 -5 -5 -4 -4 -4 -4 -3 -3 -3 -3 -2 -1 ------- Run | Yrd Mat Sub Mat Gar Mat Gar Fac Low Low Dat Pro Fac Gar Fac Was Fac Ext Cet Arc Hub Fac Upp Upp War Pro Res Gar Res Res Acc Combat Hostiles Destroyed 482 | . 10 7 24 32 32 26 7 5 12 . 7 14 18 25 6 38 17 . . 4 32 8 14 11 2 31 37 34 3 26 Melee 14 | . . . . 1 . . . . . . . . . . . . 6 . . 1 5 . . . . 1 . . . . Guns 293 | . 10 4 11 16 18 22 7 2 1 . 1 11 18 25 . 15 3 . . 3 21 8 4 . 2 28 16 30 3 14 Cannons 16 | . . 1 2 1 1 . . . . . 1 . . . . . 3 . . . 2 . . . . 1 4 . . . AOE 148 | . . 2 10 14 13 3 . 3 10 . 4 3 . . 6 20 4 . . . 4 . 10 11 . 1 14 4 . 12 Classes Destroyed 27 | 2 4 1 3 3 3 . . 1 . . . . . . 1 3 . . . . 1 1 . 3 1 . . . . . Worker 24 | . . . 2 . . . 1 . . . . 3 . 6 . 4 . . . 1 1 . . . . 2 . 1 1 2 Builder 17 | . . . 1 . 2 . . . . . . . . 2 . 1 4 . . . 4 . . . . . . 2 . 1 Tunneler 8 | 1 1 . . . 1 . . . . . . . . 1 . 2 . . . . . . . . . 2 . . . . Hauler 10 | . 1 . 4 . 3 . . . . . . . . 1 . 1 . . . . . . . . . . . . . . Recycler 20 | 1 . . 2 . 1 . 1 . . . . 2 . 3 . 3 3 . . . 2 . . . . . . 1 . 1 Mechanic 7 | . . . . . 1 . . . . . . . . 5 . 1 . . . . . . . . . . . . . . Operator 5 | . . . . . 1 . 1 . . . . 1 . . . . . . 1 . . . . . . . . 1 . . Drone 2 | . . . . . . . . . . . . . . . . . . . . . 2 . . . . . . . . . Watcher 18 | . 3 . . . 5 . . . . . . . . 2 . . 1 1 . . 1 . . . . 2 . 1 1 1 Swarmer 105 | . 3 3 11 8 10 3 . . 8 . . 4 7 5 . . 3 . . . . . 5 . . . 17 4 2 12 Cutter 9 | . . . . . . . . . . . . . . . . 4 . . . 2 . . . . . . . . . 3 Saboteur 6 | . . . . . . . . . . . . . . . . . . . . . . . . 4 . . 1 1 . . Grunt 165 | . 7 . 11 11 11 16 3 3 3 . 3 8 8 10 . 17 8 . . 2 5 2 4 5 . 11 7 8 1 1 Brawler 17 | . . . . 2 1 . . . . . . 1 1 2 . 5 . . . . . 2 . . . 1 . 2 . . Duelist 12 | . . . . . 2 2 . 1 . . . . . 2 . 1 . . . . 1 . . . . 1 1 1 . . Protector 2 | . . . . . . . . . . . . . . . . . . . . . . . . 1 . . . 1 . . Sentry 48 | . . . 2 7 7 2 . . . . 1 . 2 2 . 2 4 . . . 7 1 1 . . 2 5 2 . 1 Demolisher 1 | . . . . . . . . . . . . . . . . . . . . . . . . 1 . . . . . . Specialist 6 | . . . . . . . . . . . . . . . . 2 . . . . . . . . . 2 2 . . . Hunter 28 | . . . . 1 1 . . . . . 2 1 . . . 2 1 . . . 1 2 . . . 4 3 6 . 4 Programmer 60 | . . . . 3 . 3 4 . 1 . . . . 4 . 4 . . . . 15 1 . . 2 10 . 9 . 4 Heavy 3 | . . . . . . . . . . . . . . . . 1 . . . . 1 . . . . . . . . 1 Behemoth 5 | . . . . . . . . 1 . . 1 . . . . . 1 . . . 1 . . . . . 1 . . . Compactor 6 | . . . . . . . . . . . . . . . 6 . . . . . . . . . . . . . . . Subdweller 4 | . . 4 . . . . . . . . . . . . . . . . . . . . . . . . . . . . Packrat 1 | . . . . . . . . . . . 1 . . . . . . . . . . . . . . . . . . . Samaritan 1 | . . . . . . . . . . . . . . . . . . . . . . . . . 1 . . . . . Thug 3 | . . . . . . . . . . . . . . . . . . 1 . . . 1 1 . . . . . . . Butcher 3 | . . . . . . . . . . . . . . . . . . . . . . . 3 . . . . . . . Mutant 1 | . . . . . . . . . . . . . . . . . . . . . . 1 . . . . . . . . Best Kill Streak 19 | 1 3 2 4 12 6 4 3 4 4 . 3 6 4 8 6 16 6 1 1 3 9 3 5 7 2 7 19 7 2 15 Combat Bots Only 19 | . 3 2 4 12 6 4 3 4 4 . 3 6 4 6 6 13 5 . . 2 6 3 5 7 2 4 19 6 2 12 Max Kills in Single Turn 5 | 1 1 1 4 3 2 1 2 2 2 . 1 2 2 2 1 5 2 1 1 1 5 1 5 2 1 3 2 4 2 5 Gunslinging 2 | . . . 2 . . . 1 . . . . 1 1 . . . . . . . . . . . . . 1 2 . 1 Exploded 5 | . . 1 4 3 2 1 . 2 2 . 1 2 . . 1 5 2 . . . 2 . 5 2 . 1 2 4 . 4 Melee 1 | . . . . 1 . . . . . . . . . . . . 1 . . 1 1 . . . . 1 . . . . Uniques/NPCs Destroyed . | . . . . . . . . . . . . . . . . . . . . . . . . . . . . . . . Combat | -11 -10 -10 -8 -8 -8 -8 -7 -7 -7 -7 -6 -6 -6 -5 -5 -5 -5 -5 -5 -5 -4 -4 -4 -4 -3 -3 -3 -3 -2 -1 -------- Run | Yrd Mat Sub Mat Gar Mat Gar Fac Low Low Dat Pro Fac Gar Fac Was Fac Ext Cet Arc Hub Fac Upp Upp War Pro Res Gar Res Res Acc Hostile Shots Fired 3268 | . 47 33 69 93 96 88 44 53 43 . 122 81 106 197 . 137 187 9 4 9 318 81 41 12 12 268 395 293 25 405 Missed 845 | . 6 8 25 26 36 24 17 11 15 . 42 23 20 33 . 44 44 4 1 2 77 24 9 3 3 80 64 82 9 113 Intercepted 3 | . . . . . . . . . . . . . . . . . . . . . . . . 3 . . . . . . Hits 2423 | . 41 25 44 67 60 64 27 42 28 . 80 58 86 164 . 93 143 5 3 7 241 57 32 9 9 188 331 211 16 292 Melee 79 | . . . . . . 10 . 5 . . . 4 . 22 . 2 . . . 2 . . 1 1 . 4 1 14 . 13 Projectile 2344 | . 41 25 44 67 60 54 27 37 28 . 80 54 86 142 . 91 143 5 3 5 241 57 31 8 9 184 330 197 16 279 AOE 12 | . . . . . . . . . . . . . . . . 4 . . . 1 . . . 4 . . . . . 3 Critical Strikes 135 | . 1 . 1 2 1 6 5 2 1 . 1 2 . 11 . 4 12 1 1 1 17 5 2 . 1 11 12 14 . 21 Part Disruptions 5 | . . . . 1 . 1 . . . . . . . . . . . . . . . . . . . . 1 1 . 1 Damage Taken 47701 | . 478 277 601 905 795 1129 428 977 486 . 1121 1078 1124 3799 56 2718 2940 88 139 288 4865 801 566 444 131 2753 7209 3476 338 7691 Core 4821 | . 55 38 52 66 97 91 29 56 59 . 178 76 122 391 . 109 388 25 . 34 317 37 15 33 12 170 654 87 27 1603 Absorbed by Shields 5494 | . . . . . . . 26 . . . . . . . . . 45 60 . . 498 46 106 32 81 1023 1456 1355 59 707 Reduced by Siege Mode 2090 | . . . . . . . . . . . . . 33 241 . 48 76 . . . 126 . . . . 40 949 289 . 288 Redirected to Shielding 72 | . . . . . . . . . 20 . 52 . . . . . . . . . . . . . . . . . . . Ignored by Resistances 305 | . . . 28 . . . . . 6 . . . . . . . . . . . 70 146 7 . . . 21 27 . . Regen/Repaired (Parts) 652 | . . . . . 181 . . . . . . . . . . 17 . . . . 396 . . 45 . . . . 13 . Core Remaining (%) 59 | 100 . 62 . . . 44 . . . . 54 . 76 . . . . . . 5 . . . . 64 . . 29 98 . Volleys Fired 1469 | 6 54 45 72 90 96 74 28 17 24 . 33 45 73 112 12 62 58 13 5 25 122 31 16 16 4 81 107 86 8 54 Largest 5 | 2 2 2 3 3 3 3 3 3 3 . 3 3 3 3 1 3 3 3 3 3 4 4 4 2 4 4 4 4 5 5 Hottest 282 | 70 100 160 160 78 94 81 75 75 81 . 152 152 150 183 50 243 194 149 149 175 244 162 232 70 150 213 282 136 165 172 Shots Fired 3524 | 12 104 50 166 186 229 180 81 35 34 . 46 96 186 284 14 136 117 30 12 33 299 119 51 18 11 207 299 257 40 192 Gun 3023 | 12 102 6 120 170 194 173 80 27 14 . 15 88 186 270 . 120 63 30 12 16 249 118 46 4 11 191 249 237 40 180 Cannon 294 | . . 28 31 4 11 . . 3 . . 7 4 . 14 . 1 49 . . 17 48 . . . . 16 37 17 . 7 Launcher 196 | . . 7 15 12 24 7 1 5 20 . 24 4 . . 14 15 5 . . . 2 1 5 14 . . 13 3 . 5 Special 11 | . 2 9 . . . . . . . . . . . . . . . . . . . . . . . . . . . . Kinetic 2710 | 6 52 9 105 174 205 173 80 30 14 . 18 53 179 254 . 31 48 21 10 26 245 114 23 4 8 122 249 237 40 180 Thermal 530 | 6 52 41 46 . . . . . . . 4 39 7 30 . 88 61 9 2 7 52 4 23 . . 16 19 17 . 7 Explosive 98 | . . . 1 12 . . . . . . 10 4 . . 14 9 5 . . . 2 1 5 14 . . 13 3 . 5 Electromagnetic 114 | . . . 14 . 24 7 1 5 20 . 14 . . . . 8 3 . . . . . . . . . 18 . . . Entropic 72 | . . . . . . . . . . . . . . . . . . . . . . . . . 3 69 . . . . Robot Hit Streak 32 | 3 9 5 11 15 11 13 9 9 7 . 9 11 18 20 5 28 11 6 4 2 17 16 12 13 2 32 29 30 5 19 Robot Miss Streak 9 | 2 4 1 4 2 3 4 5 2 4 . 3 6 9 9 6 7 3 3 2 8 5 3 6 1 3 5 6 4 4 3 Penetration Max 1 | . . . . . . 1 . . . . . . 1 1 . 1 . 1 . 1 1 1 . . . 1 1 1 1 1 Secondary Targets 60 | . 1 . 3 1 . 1 1 . . . . 2 2 9 . 1 . . . . 5 3 1 . 1 5 6 10 2 6 Max Gunslinging Chain 2 | . 1 . 2 1 . 1 1 . . . . 1 1 1 . 1 . . . . 1 1 1 . 1 1 1 2 1 1 Shots Hit Robots 2354 | 6 66 13 98 105 128 132 54 27 25 . 37 73 133 205 8 106 85 17 11 8 189 68 36 15 6 137 224 175 21 146 Core Hits 1462 | 3 23 10 48 63 74 58 21 18 22 . 25 62 57 147 28 131 46 10 2 14 114 25 44 31 4 83 118 93 19 69 Critical Kills 42 | . . . . . . 1 . . . . . . . 2 . 1 3 . . 1 2 1 . . . 2 13 10 3 3 Critical Parts Destroyed 64 | . . . 1 . . 2 1 . . . . . 4 1 . 2 2 . . 1 7 3 . . . 9 15 9 3 4 Critical Strikes 158 | 1 2 . 3 . . 4 1 . . . 1 3 5 8 . 7 10 1 1 2 14 6 . . . 11 43 22 6 7 Burn 15 | 1 2 . 1 . . . . . . . . 3 . 3 . 3 . 1 . . . 1 . . . . . . . . Meltdown 1 | . . . . . . . . . . . . . . . . . 1 . . . . . . . . . . . . . Destroy 117 | . . . 1 . . 3 1 . . . . . 4 4 . 4 4 . . 2 10 5 . . . 7 39 22 6 5 Blast 6 | . . . 1 . . . . . . . 1 . . . . . . . . . 4 . . . . . . . . . Smash 6 | . . . . . . . . . . . . . . . . . . . . . . . . . . . 4 . . 2 Sever 9 | . . . . . . 1 . . . . . . 1 1 . . 5 . 1 . . . . . . . . . . . Detonate 4 | . . . . . . . . . . . . . . . . . . . . . . . . . . 4 . . . . Melee Attacks 347 | . . . 4 41 2 46 5 . . . 3 12 59 21 . 6 39 . 4 4 48 . . 2 3 17 22 3 . 6 Impact 32 | . . . . . . . . . . . . . . . . . . . . . . . . . . 2 21 3 . 6 Slashing 315 | . . . 4 41 2 46 5 . . . 3 12 59 21 . 6 39 . 4 4 48 . . 2 3 15 1 . . . Piercing . | . . . . . . . . . . . . . . . . . . . . . . . . . . . . . . . Sneak Attacks 40 | . . . 1 . 1 . 2 . . . 1 7 . 9 . 5 8 . 3 . . . . . 1 1 . 1 . . Combat Hostiles . | . . . . . . . . . . . . . . . . . . . . . . . . . . . . . . . Follow-up Attacks . | . . . . . . . . . . . . . . . . . . . . . . . . . . . . . . . Damage Inflicted 84293 | 87 947 687 2442 3586 2999 3609 1321 840 838 . 1532 2393 4043 5027 4414 6316 3540 472 472 438 8095 1967 2130 2243 288 5596 5728 5659 736 5848 Guns 45282 | 87 921 91 1275 1508 1830 1962 1156 496 203 . 224 1034 1755 4110 . 2157 838 472 175 165 4977 1920 742 103 197 4391 3118 4646 736 3993 Cannons 2782 | . . 82 384 57 84 . . . . . 144 33 . . . . 675 . . 115 482 . . . . 146 543 . . 37 Explosions 24974 | . . 514 709 1329 1003 367 28 344 635 . 1064 779 . 66 4414 3757 610 . . 90 1007 47 1388 2140 . 876 1430 839 . 1538 Melee 11196 | . . . 74 692 82 1280 137 . . . 100 547 2288 851 . 390 1417 . 297 68 1626 . . . 91 165 637 174 . 280 Ramming 33 | . . . . . . . . . . . . . . . . 12 . . . . 3 . . . . 18 . . . . Kinetic 39402 | 37 431 557 1186 1565 1914 1962 1156 496 203 . 323 684 1737 3706 . 619 598 313 128 166 5003 1849 381 103 90 1702 3118 4646 736 3993 Thermal 7583 | 50 516 130 531 . 31 . . 40 . . 63 548 18 404 . 1958 896 159 47 114 456 71 361 . . 932 221 . . 37 Explosive 18481 | . . . 155 1329 . . . . . . 666 614 . . 4414 2517 610 . . . 848 47 1388 2140 . 90 1430 839 . 1394 Electromagnetic 4802 | . . . 496 . 972 367 28 304 635 . 380 . . 66 . 820 19 . . 90 159 . . . . . 322 . . 144 Impact 1091 | . . . . . . . . . . . . . . . . . . . . . . . . . . . 637 174 . 280 Slashing 10105 | . . . 74 692 82 1280 137 . . . 100 547 2288 851 . 390 1417 . 297 68 1626 . . . 91 165 . . . . Piercing . | . . . . . . . . . . . . . . . . . . . . . . . . . . . . . . . Entropic 2796 | . . . . . . . . . . . . . . . . . . . . . . . . . 107 2689 . . . . Highest Corruption 58 | . . . . 1 1 1 2 3 3 . . 1 1 4 17 17 15 15 15 17 6 7 7 . . . 22 30 . 58 Average Corruption 10 | . . . . 1 1 1 1 2 2 . . 1 1 2 8 13 15 15 15 15 3 6 7 . . . 17 24 . 47 Corruption Purged 27 | . . . . . 1 . . 3 3 . . . . 3 . 7 . . . . . . . . 2 8 . . . . Corruption Blocked 19 | . . . . . . . . . . . . . . . . . . . . . 9 . . . . . . . . 10 Effects 511 | . . . . 2 4 5 3 18 3 . . . 13 4 5 69 61 17 9 18 20 37 21 . . . 65 124 . 13 Message Errors 119 | . . . . 1 . . 1 4 . . . . 1 3 . 13 16 1 . 6 2 12 7 . . . 19 31 . 2 Matter Fused 111 | . . . . 1 2 . . 5 1 . . . 4 . 1 22 11 6 4 2 3 6 3 . . . 13 26 . 1 Heat Flow Errors 53 | . . . . . . 1 . 4 . . . . 2 . . 7 6 1 1 3 . 3 1 . . . 10 11 . 3 Energy Discharges 60 | . . . . . 1 1 1 . . . . . . 1 . 6 10 3 4 2 1 3 3 . . . 8 16 . . Parts Rejected 5 | . . . . . . . . . . . . . . . . 2 1 . . . . . . . . . . 2 . . Parts Fused 7 | . . . . . . . . . . . . . . . . 1 1 . . . 2 1 . . . . . 2 . . Data Loss (minor) 62 | . . . . . . 1 1 3 1 . . . 3 . 1 8 7 3 . 1 5 5 4 . . . 7 10 . 2 Data Loss (major) 17 | . . . . . . . . 2 . . . . . . 1 . 2 1 . . 1 1 1 . . . 1 6 . 1 Misfires 25 | . . . . . 1 2 . . 1 . . . 1 . 2 3 2 1 . . 2 2 2 . . . 3 3 . . Alerts 14 | . . . . . . . . . . . . . 2 . . 3 1 1 . . . 4 . . . . 1 2 . . Misdirections 5 | . . . . . . . . . . . . . . . . 1 . . . . . . . . . . 1 1 . 2 Weapon Failures 33 | . . . . . . . . . . . . . . . . 3 4 . . 4 4 . . . . . 2 14 . 2 Overload Shots 21 | . . . . . . . . . . . . 3 5 2 . 7 1 3 . . . . . . . . . . . . Effects 4 | . . . . . . . . . . . . 1 2 1 . . . . . . . . . . . . . . . . Energy Bleed 1 | . . . . . . . . . . . . 1 . . . . . . . . . . . . . . . . . . Heat Surge 2 | . . . . . . . . . . . . . 2 . . . . . . . . . . . . . . . . . Short Circuit 1 | . . . . . . . . . . . . . . 1 . . . . . . . . . . . . . . . . Overflow Damage 2095 | . . . 34 122 52 31 34 . . . 108 120 60 147 . 128 248 . 88 24 52 . 15 76 . 78 366 112 . 200 Projectiles 97 | . . . . . . . . . . . . 18 . . . . 13 . . . 22 . . . . . 44 . . . Explosions 486 | . . . . 24 10 . . . . . 56 25 . 4 . 57 . . . . 2 . 15 76 . 8 128 8 . 73 Melee 1512 | . . . 34 98 42 31 34 . . . 52 77 60 143 . 71 235 . 88 24 28 . . . . 70 194 104 . 127 Knockbacks 4 | . . . 1 . . . . . . . . . . . . . . . . 1 . . . . . . . 1 . 1 Impact 2 | . . . . . . . . . . . . . . . . . . . . . . . . . . . . 1 . 1 Kinetic 2 | . . . 1 . . . . . . . . . . . . . . . . 1 . . . . . . . . . . Secondary . | . . . . . . . . . . . . . . . . . . . . . . . . . . . . . . . Self-Inflicted Damage 1258 | . . . . . 8 14 . 94 80 . 83 . . . 59 319 25 . . 69 31 . 75 21 . 257 . 48 . 75 Shots 37 | . . . . . 1 1 . 6 4 . 3 . . . 3 4 1 . . 1 2 . 4 1 . 3 . 1 . 2 Rammed 4 | . . . . . . . . . . . . . . . . 2 . . . . 1 . . . . 1 . . . . Targets Rammed 4 | . . . . . . . . . . . . . . . . 2 . . . . 1 . . . . 1 . . . . Kicked . | . . . . . . . . . . . . . . . . . . . . . . . . . . . . . . . Crushed . | . . . . . . . . . . . . . . . . . . . . . . . . . . . . . . . Highest Temperature 499 | 36 369 39 499 390 270 378 62 259 1 . 234 236 405 223 . 478 289 171 129 240 463 199 196 40 149 427 424 372 190 251 Average Temperature 94 | 15 80 12 126 115 62 85 23 59 1 . 65 60 79 46 . 107 110 61 62 98 107 102 88 15 84 102 145 104 69 66 Received Heat Transfer 8117 | . 249 72 306 234 270 342 36 213 27 . 225 309 234 822 . 399 728 . . 36 1474 112 75 21 . 459 882 512 49 31 Effects 37 | . 3 . 4 3 . . . . . . . . . . . 6 . . . . 6 . . . . 2 8 4 . 1 Shutdowns 8 | . 1 . 1 . . . . . . . . . . . . 2 . . . . 2 . . . . 1 . 1 . . Energy Bleed 6 | . 1 . 2 . . . . . . . . . . . . 1 . . . . 1 . . . . . . . . 1 Interference 12 | . . . . 1 . . . . . . . . . . . 3 . . . . . . . . . . 6 2 . . Matter Decay 3 | . . . . 1 . . . . . . . . . . . . . . . . . . . . . . 1 1 . . Short Circuit 5 | . 1 . . . . . . . . . . . . . . . . . . . 2 . . . . 1 1 . . . Damage (minor) 3 | . . . 1 1 . . . . . . . . . . . . . . . . 1 . . . . . . . . . Siege Activations 39 | . . . . . . . . . . . . . 2 8 . 3 1 . . . 2 . . . . 3 5 10 . 5 Total Turns 953 | . . . . . . . . . . . . . 40 226 . 33 43 . . . 53 . . . . 49 146 235 . 128 Longest Duration 51 | . . . . . . . . . . . . . 22 50 . 15 43 . . . 36 . . . . 21 45 51 . 48 Martial Activations . | . . . . . . . . . . . . . . . . . . . . . . . . . . . . . . . Shielding Activations . | . . . . . . . . . . . . . . . . . . . . . . . . . . . . . . . Robots Disrupted . | . . . . . . . . . . . . . . . . . . . . . . . . . . . . . . . Combat Hostiles . | . . . . . . . . . . . . . . . . . . . . . . . . . . . . . . . Robots Corrupted 10 | . . . 1 . . 1 . . 1 . 1 . . . . 2 . . . . . . . . . . 3 1 . . Combat Hostiles 9 | . . . 1 . . 1 . . 1 . 1 . . . . 2 . . . . . . . . . . 3 . . . Parts Fried 28 | . . . 3 . 4 . . 3 5 . 3 . . . . 5 . . . . . . . . . . 3 2 . . Impact Corruptions 11 | . . . . . . . . . . . . . . . . . . . . . . . . . . . 6 3 . 2 Robots Melted 2 | . . . . . . . . . . . . . . . . 1 1 . . . . . . . . . . . . . Combat Hostiles 2 | . . . . . . . . . . . . . . . . 1 1 . . . . . . . . . . . . . Parts Melted 19 | . 3 1 1 . . 1 . . . . . . . . . 9 3 . . . . . . 1 . . . . . . Heat Transferred 11833 | 222 1382 222 988 . 50 . . 50 . . 150 1175 37 1039 . 2866 1049 266 74 148 518 185 555 . . 598 222 . . 37 Parts Sabotaged 1 | . . . . . . . . . . . . . . . . . . . . . . . . . . . 1 . . . Parts Stolen . | . . . . . . . . . . . . . . . . . . . . . . . . . . . . . . . Parts Stripped . | . . . . . . . . . . . . . . . . . . . . . . . . . . . . . . . Power Chain Reactions 10 | . . . 4 . 1 . . 1 . . 2 . . . . 1 . . . . . . . . . . . . . 1 Alert | -11 -10 -10 -8 -8 -8 -8 -7 -7 -7 -7 -6 -6 -6 -5 -5 -5 -5 -5 -5 -5 -4 -4 -4 -4 -3 -3 -3 -3 -2 -1 ------- Run | Yrd Mat Sub Mat Gar Mat Gar Fac Low Low Dat Pro Fac Gar Fac Was Fac Ext Cet Arc Hub Fac Upp Upp War Pro Res Gar Res Res Acc Maximum Alert Level 5 | . . . 2 5 3 4 3 . . . . 1 4 4 2 3 2 1 1 2 3 . . . . 1 4 3 2 2 Low Security (%) 28 | 100 100 . 43 . . . . . . . . 21 . . . 30 . . 52 41 66 . . . . 80 14 . 27 62 Level 1 15 | . . . 49 11 . . . . . . . 78 15 . . 21 7 100 47 54 16 . . . . 19 7 . 36 20 Level 2 28 | . . . 6 6 67 3 73 . . . . . 9 15 100 33 92 . . 4 14 . . . . . 17 72 35 16 Level 3 20 | . . . . 40 32 37 26 . . . . . 39 77 . 14 . . . . 2 . . . . . 44 27 . . Level 4 6 | . . . . 28 . 59 . . . . . . 35 7 . . . . . . . . . . . . 15 . . . Level 5 . | . . . . 12 . . . . . . . . . . . . . . . . . . . . . . . . . . High Security . | . . . . . . . . . . . . . . . . . . . . . . . . . . . . . . . Max Security . | . . . . . . . . . . . . . . . . . . . . . . . . . . . . . . . Peak Influence 1761 | 5 111 . 422 1761 985 1565 821 . . . . 366 1421 1359 685 982 524 347 244 648 790 . . . . 299 1267 1001 562 577 Initial 858 | . . . . 269 858 634 821 . . . . 8 211 745 475 458 476 255 82 56 307 . . . . . 45 712 562 64 Average 501 | 1 45 . 201 1044 708 1142 656 . . . . 236 927 818 613 382 447 280 191 191 186 . . . . 125 732 664 319 169 Influence Increases 19793 | 10 393 105 790 1542 1038 1001 208 120 280 . 175 595 1280 1477 240 1540 947 202 190 812 1459 171 220 205 50 1112 1532 957 115 1027 Destroy 0b10 Robot/C 10640 | . 200 60 480 740 640 540 140 100 240 . 140 280 680 940 . 760 500 80 80 180 620 140 200 200 40 620 800 660 60 520 Destroy 0b10 Robot/NC 760 | 10 25 . 45 20 70 20 15 . . . 5 30 30 170 . 60 45 5 10 15 45 . . 5 . 30 35 35 10 25 Destroy Leader 1700 | . 58 . 98 30 176 50 50 20 40 . 30 40 40 158 . 142 44 . . 32 192 20 20 . 10 134 70 132 12 102 Allied During Kill 633 | . . . . 28 . 3 . . . . . . 134 95 . . 155 77 54 55 . 11 . . . . 21 . . . Successful Hack 404 | . 48 . 15 14 18 30 . . . . . 26 . . . 12 3 . . . 82 . . . . 96 16 . . 44 Select Force Hacks 120 | . 60 . 60 . . . . . . . . . . . . . . . . . . . . . . . . . . . Disable Machine 1050 | . . . 30 45 60 15 . . . . . 135 15 30 . 150 30 30 30 255 105 . . . . 60 30 . . 30 Anti-Garrison Action 1400 | . . . . 450 . 250 . . . . . . 300 . . . . . . . . . . . . . 400 . . . Destroy Structure 2321 | . 2 . 32 200 14 78 3 . . . . 39 51 54 240 416 110 10 16 230 250 . . . . 172 115 100 3 186 Partial Spotted 30 | . . . . . . . . . . . . . . . . . . . . 15 15 . . . . . . . . . Lose Combat Pursuer 735 | . . 45 30 15 60 15 . . . . . 45 30 30 . . 60 . . 30 150 . . . . . 45 30 30 120 Influence Decreases 19339 | 10 393 105 376 195 1823 412 1188 667 300 18 161 307 161 1540 943 1223 1462 452 235 346 1297 815 314 78 229 1052 325 1223 1009 680 Entered New Map 7085 | . . . . 145 903 342 744 217 8 18 . 6 91 676 883 197 496 202 125 106 321 293 29 52 179 . 15 555 439 43 Time Decay 8693 | 10 383 95 356 . 620 . 434 440 282 . 121 231 . 574 60 497 546 190 110 130 709 482 275 26 50 567 . 628 550 327 Lost Part 1610 | . 10 10 20 10 . 50 10 10 10 . 40 70 30 180 . 130 150 . . 10 160 20 10 . . 40 270 40 20 310 Lost Ally 618 | . . . . 40 . 20 . . . . . . 40 110 . . 120 60 . 100 68 20 . . . . 40 . . . Purge Threat 1333 | . . . . . 300 . . . . . . . . . . 399 150 . . . 39 . . . . 445 . . . . Squads Dispatched 83 | . 3 . 4 . 4 . 5 . . . . 3 . 10 . 11 1 . . 3 14 . . . . 7 . 8 3 7 Investigation 10 | . 3 . 2 . 2 . 2 . . . . . . . . . 1 . . . . . . . . . . . . . Extermination 25 | . . . . . . . 2 . . . . 1 . 2 . 2 . . . . 7 . . . . 4 . 5 . 2 Reinforcement 33 | . . . 1 . 1 . 1 . . . . 2 . 3 . 6 . . . 3 4 . . . . 3 . 1 3 5 Assault 10 | . . . . . 1 . . . . . . . . 4 . 3 . . . . . . . . . . . 2 . . Garrison 5 | . . . 1 . . . . . . . . . . 1 . . . . . . 3 . . . . . . . . . Intercept . | . . . . . . . . . . . . . . . . . . . . . . . . . . . . . . . Searches Triggered . | . . . . . . . . . . . . . . . . . . . . . . . . . . . . . . . Unchained Authorized 1 | . . . . . . . . . . . . . . . . . . . . . . . . . . . . . . 1 Data Miner Redirects 3 | . . . . . . . . . . . . . . 1 . 1 . . . . . . . . . . . 1 . . Construction Impeded 6 | . . . . . . . . . . . . . . 1 . 2 . . . 1 2 . . . . . . . . . Haulers Reinforced 7 | . . . . . . . . . . . . 1 . . . 1 . . . 1 . . . . . . . 1 2 1 Active Scanning Responses . | . . . . . . . . . . . . . . . . . . . . . . . . . . . . . . . Cargo Convoy Interrupts 2 | . . . . . . . . . . . . . . . . 1 . . . . 1 . . . . . . . . . Stealth | -11 -10 -10 -8 -8 -8 -8 -7 -7 -7 -7 -6 -6 -6 -5 -5 -5 -5 -5 -5 -5 -4 -4 -4 -4 -3 -3 -3 -3 -2 -1 --------- Run | Yrd Mat Sub Mat Gar Mat Gar Fac Low Low Dat Pro Fac Gar Fac Was Fac Ext Cet Arc Hub Fac Upp Upp War Pro Res Gar Res Res Acc Distress Signals 31 | . 1 . 4 . 4 . . . . . . . . 2 . . 4 1 1 . 5 . . . . 1 . . 6 2 Communications Jammed 64 | . . . . . . . . . . . . . . . . . . . . . . . . . . . . 64 . . Distress Signals 62 | . . . . . . . . . . . . . . . . . . . . . . . . . . . . 62 . . Times Spotted 724 | . 15 10 35 34 46 28 12 5 12 . 7 18 31 62 6 40 33 6 6 9 50 9 14 23 2 38 38 43 36 56 Peak Tracking Total 17 | . 4 4 5 7 5 4 3 4 4 . 3 6 4 7 3 7 6 5 1 5 6 3 5 13 2 4 12 6 5 17 Tactical Retreats 30 | . . 2 2 1 2 1 . . . . . 2 2 2 . . 4 . . 2 3 . . . . . 2 2 1 2 Traps | -11 -10 -10 -8 -8 -8 -8 -7 -7 -7 -7 -6 -6 -6 -5 -5 -5 -5 -5 -5 -5 -4 -4 -4 -4 -3 -3 -3 -3 -2 -1 ------- Run | Yrd Mat Sub Mat Gar Mat Gar Fac Low Low Dat Pro Fac Gar Fac Was Fac Ext Cet Arc Hub Fac Upp Upp War Pro Res Gar Res Res Acc Traps Triggered 47 | . 1 . . 11 1 2 4 . . . . . 5 4 . 2 6 . . . 1 . . . . 2 3 4 . 1 Indirectly 2 | . . . . . 1 . . . . . . . . 1 . . . . . . . . . . . . . . . . Trap Hack Attempts . | . . . . . . . . . . . . . . . . . . . . . . . . . . . . . . . Triggered . | . . . . . . . . . . . . . . . . . . . . . . . . . . . . . . . Disarmed . | . . . . . . . . . . . . . . . . . . . . . . . . . . . . . . . Reprogrammed . | . . . . . . . . . . . . . . . . . . . . . . . . . . . . . . . Reused . | . . . . . . . . . . . . . . . . . . . . . . . . . . . . . . . Traps Extracted . | . . . . . . . . . . . . . . . . . . . . . . . . . . . . . . . Installed . | . . . . . . . . . . . . . . . . . . . . . . . . . . . . . . . Triggered . | . . . . . . . . . . . . . . . . . . . . . . . . . . . . . . . Machines | -11 -10 -10 -8 -8 -8 -8 -7 -7 -7 -7 -6 -6 -6 -5 -5 -5 -5 -5 -5 -5 -4 -4 -4 -4 -3 -3 -3 -3 -2 -1 ---------- Run | Yrd Mat Sub Mat Gar Mat Gar Fac Low Low Dat Pro Fac Gar Fac Was Fac Ext Cet Arc Hub Fac Upp Upp War Pro Res Gar Res Res Acc Machines Disabled 97 | . . . 2 12 4 6 . . . . . 9 5 2 . 10 4 4 2 17 7 . . . 1 4 6 . . 2 Max in Single Turn 12 | . . . 1 1 1 1 . . . . . 7 1 1 . 4 1 1 . 12 2 . . . 1 1 1 . . 1 Garrison Access 8 | . . . . . . . . . . . . . . 1 . . . . . . 3 . . . . 2 . . 1 1 Garrison Relay 18 | . . . . 5 . 5 . . . . . . 4 . . . . . . . . . . . . . 4 . . . Phase Generator 1 | . . . . 1 . . . . . . . . . . . . . . . . . . . . . . . . . . Network Hub 1 | . . . . . . . . . . . . . . . . . . . . 1 . . . . . . . . . . Machines Repaired . | . . . . . . . . . . . . . . . . . . . . . . . . . . . . . . . Machines Dismantled . | . . . . . . . . . . . . . . . . . . . . . . . . . . . . . . . Machines Sabotaged . | . . . . . . . . . . . . . . . . . . . . . . . . . . . . . . . Overloaded Fab Kills . | . . . . . . . . . . . . . . . . . . . . . . . . . . . . . . . Hacking | -11 -10 -10 -8 -8 -8 -8 -7 -7 -7 -7 -6 -6 -6 -5 -5 -5 -5 -5 -5 -5 -4 -4 -4 -4 -3 -3 -3 -3 -2 -1 --------- Run | Yrd Mat Sub Mat Gar Mat Gar Fac Low Low Dat Pro Fac Gar Fac Was Fac Ext Cet Arc Hub Fac Upp Upp War Pro Res Gar Res Res Acc Machines Accessed 118 | . 10 1 6 2 15 3 4 1 1 3 1 3 1 . . 6 3 1 . 1 15 1 . 11 1 16 2 4 2 4 Terminals 62 | . 7 . 1 2 10 3 3 1 . . 1 1 1 . . 4 3 1 . 1 6 . . . . 10 2 3 . 2 Fabricators 1 | . . . . . . . . . . . . . . . . . . . . . 1 . . . . . . . . . Repair Stations 7 | . 1 . . . 1 . . . . . . . . . . 1 . . . . 2 . . . . 2 . . . . Recycling Units 10 | . 2 . 2 . 1 . . . . . . 1 . . . . . . . . 1 . . . . 1 . 1 1 . Scanalyzers 6 | . . . 2 . 2 . . . . . . . . . . . . . . . 2 . . . . . . . . . Garrison Access 14 | . . . 1 . 1 . 1 . . . . 1 . . . 1 . . . . 3 . . . . 3 . . 1 2 Total Hacks 341 | . 31 1 15 2 45 4 7 1 1 23 3 6 3 . . 14 10 1 . 2 75 1 . 16 1 51 4 9 6 9 Successful 193 | . 17 1 10 1 22 3 . 1 1 23 3 3 1 . . 9 3 . . 1 40 1 . 16 1 25 1 1 4 5 Failed 148 | . 14 . 5 1 23 1 7 . . . . 3 2 . . 5 7 1 . 1 35 . . . . 26 3 8 2 4 Catastrophic 27 | . 1 . 2 . 4 . 3 . . . . . 1 . . . . . . . 6 . . . . 2 2 5 . 1 Database Lockouts . | . . . . . . . . . . . . . . . . . . . . . . . . . . . . . . . Manual 118 | . 25 . 11 . 26 . 3 . . . . 2 . . . 7 6 1 . 1 13 . . 1 . 16 . 3 1 2 Terminals 186 | . 24 . 6 2 30 4 5 1 . . 3 3 3 . . 11 10 1 . 2 31 . . . . 36 4 5 . 5 Fabricators 3 | . . . . . . . . . . . . . . . . . . . . . 3 . . . . . . . . . Repair Stations 32 | . 2 . . . 7 . . . . . . . . . . 2 . . . . 16 . . . . 5 . . . . Recycling Units 26 | . 5 . 5 . 2 . . . . . . 2 . . . . . . . . 1 . . . . 3 . 4 4 . Scanalyzers 20 | . . . 3 . 5 . . . . . . . . . . . . . . . 12 . . . . . . . . . Garrison Access 31 | . . . 1 . 1 . 2 . . . . 1 . . . 1 . . . . 12 . . . . 7 . . 2 4 Terminal Hacks 95 | . 4 1 . 1 6 3 . 1 1 23 3 . 1 . . 5 2 . . 1 10 1 . 16 1 11 1 1 . 2 Record 22 | . . . . . . . . 1 . 2 3 . . . . . . . . . . . . 15 1 . . . . . Part Schematic 10 | . . . . . . . . . . 10 . . . . . . . . . . . . . . . . . . . . Robot Schematic 8 | . . . . . . . . . . 8 . . . . . . . . . . . . . . . . . . . . Robot Analysis 3 | . 2 . . . . . . . . . . . . . . 1 . . . . . . . . . . . . . . Prototype ID Bank 7 | . 2 . . . . . . . . 3 . . . . . . . . . . 1 . . . . 1 . . . . Open Door 4 | . . . . . . 1 . . 1 . . . . . . . . . . . . 1 . 1 . . . . . . Branch Access Points 3 | . . . . . . . . . . . . . . . . 1 . . . . 1 . . . . . . . . 1 Emergency Access Points 4 | . . . . . . 1 . . . . . . 1 . . . . . . . 1 . . . . . . 1 . . Machine Index 3 | . . . . . 1 . . . . . . . . . . . . . . . 1 . . . . 1 . . . . Alert Level 5 | . . . . . 2 . . . . . . . . . . . . . . 1 1 . . . . 1 . . . . Unreport Threat 10 | . . . . . 2 . . . . . . . . . . 3 1 . . . 1 . . . . 3 . . . . Locate Traps 7 | . . . . . 1 . . . . . . . . . . . 1 . . . 2 . . . . 3 . . . . Hauler Manifests 1 | . . . . . . . . . . . . . . . . . . . . . 1 . . . . . . . . . Registered Components 1 | . . . . . . . . . . . . . . . . . . . . . . . . . . 1 . . . . Registered Prototypes 1 | . . . . . . . . . . . . . . . . . . . . . . . . . . 1 . . . . Zone Layout 2 | . . . . . . . . . . . . . . . . . . . . . 1 . . . . . . . . 1 Garrison Registry 2 | . . . . 1 . 1 . . . . . . . . . . . . . . . . . . . . . . . . Patrol Navigation 1 | . . . . . . . . . . . . . . . . . . . . . . . . . . . 1 . . . Proto ID Catalog 1 | . . 1 . . . . . . . . . . . . . . . . . . . . . . . . . . . . Fabricator Hacks 1 | . . . . . . . . . . . . . . . . . . . . . 1 . . . . . . . . . Network Status 1 | . . . . . . . . . . . . . . . . . . . . . 1 . . . . . . . . . Repair Station Hacks 23 | . 1 . . . 5 . . . . . . . . . . 2 . . . . 13 . . . . 2 . . . . Scan Component 13 | . . . . . 3 . . . . . . . . . . 1 . . . . 7 . . . . 2 . . . . Repair 9 | . . . . . 2 . . . . . . . . . . 1 . . . . 6 . . . . . . . . . Refit 1 | . 1 . . . . . . . . . . . . . . . . . . . . . . . . . . . . . Recycling Unit Hacks 7 | . 1 . . . 1 . . . . . . 1 . . . . . . . . 1 . . . . 1 . . 2 . Retrieve Matter 1 | . . . . . . . . . . . . . . . . . . . . . . . . . . . . . 1 . Retrieve Components 6 | . 1 . . . 1 . . . . . . 1 . . . . . . . . 1 . . . . 1 . . 1 . Scanalyzer 14 | . . . 3 . 3 . . . . . . . . . . . . . . . 8 . . . . . . . . . Retrieve Study 14 | . . . 3 . 3 . . . . . . . . . . . . . . . 8 . . . . . . . . . Garrison Access Hacks 11 | . . . 1 . 1 . . . . . . 1 . . . . . . . . 3 . . . . 3 . . 1 1 Unlock Access 4 | . . . 1 . 1 . . . . . . 1 . . . . . . . . . . . . . 1 . . . . Seal Access 7 | . . . . . . . . . . . . . . . . . . . . . 3 . . . . 2 . . 1 1 Unauthorized Hacks 42 | . 11 . 6 . 6 . . . . . . 1 . . . 2 1 . . . 4 . . . . 8 . . 1 2 Terminals 36 | . 9 . 3 . 6 . . . . . . 1 . . . 2 1 . . . 4 . . . . 8 . . . 2 Assimilate 1 | . . . . . . . . . . . . . . . . . . . . . . . . . . 1 . . . . Botnet 19 | . 3 . 1 . 4 . . . . . . 1 . . . 2 1 . . . 3 . . . . 2 . . . 2 Operators 3 | . 1 . 1 . 1 . . . . . . . . . . . . . . . . . . . . . . . . . Skim 13 | . 5 . 1 . 1 . . . . . . . . . . . . . . . 1 . . . . 5 . . . . Fabricators . | . . . . . . . . . . . . . . . . . . . . . . . . . . . . . . . Repair Stations . | . . . . . . . . . . . . . . . . . . . . . . . . . . . . . . . Recycling Units 6 | . 2 . 3 . . . . . . . . . . . . . . . . . . . . . . . . . 1 . Recyclers 2 | . . . 1 . . . . . . . . . . . . . . . . . . . . . . . . . 1 . Tunnel 4 | . 2 . 2 . . . . . . . . . . . . . . . . . . . . . . . . . . . Scanalyzers . | . . . . . . . . . . . . . . . . . . . . . . . . . . . . . . . Garrison Access . | . . . . . . . . . . . . . . . . . . . . . . . . . . . . . . . Data Cores Recovered 2 | . . . . . 1 . 1 . . . . . . . . . . . . . . . . . . . . . . . Used . | . . . . . . . . . . . . . . . . . . . . . . . . . . . . . . . Hacking Detections 83 | . 9 . 2 2 13 . 4 . . . 1 3 1 . . 5 3 1 . 1 14 . . . . 14 2 4 1 3 Full Trace Events 3 | . . . . . . . 2 . . . . . . . . . 1 . . . . . . . . . . . . . Feedback Events . | . . . . . . . . . . . . . . . . . . . . . . . . . . . . . . . Feedback Blocked . | . . . . . . . . . . . . . . . . . . . . . . . . . . . . . . . Robot Schematics Acquired 8 | . . . . . . . . . . 8 . . . . . . . . . . . . . . . . . . . . Robots Built . | . . . . . . . . . . . . . . . . . . . . . . . . . . . . . . . Authchips . | . . . . . . . . . . . . . . . . . . . . . . . . . . . . . . . Time . | . . . . . . . . . . . . . . . . . . . . . . . . . . . . . . . Total Robot Build Rating . | . . . . . . . . . . . . . . . . . . . . . . . . . . . . . . . Part Schematics Acquired 10 | . . . . . . . . . . 10 . . . . . . . . . . . . . . . . . . . . Parts Built . | . . . . . . . . . . . . . . . . . . . . . . . . . . . . . . . Authchips . | . . . . . . . . . . . . . . . . . . . . . . . . . . . . . . . Time . | . . . . . . . . . . . . . . . . . . . . . . . . . . . . . . . Total Part Build Rating . | . . . . . . . . . . . . . . . . . . . . . . . . . . . . . . . Part Studies Acquired 14 | . . . 3 . 3 . . . . . . . . . . . . . . . 8 . . . . . . . . . Parts Repaired 9 | . . . . . 2 . . . . . . . . . . 1 . . . . 6 . . . . . . . . . Time 538 | . . . . . 120 . . . . . . . . . . 38 . . . . 380 . . . . . . . . . Parts Recycled . | . . . . . . . . . . . . . . . . . . . . . . . . . . . . . . . Recycled Matter . | . . . . . . . . . . . . . . . . . . . . . . . . . . . . . . . Retrieved Matter . | . . . . . . . . . . . . . . . . . . . . . . . . . . . . . . . Retrieved Components 32 | . 9 . . . 9 . . . . . . 1 . . . . . . . . 3 . . . . 10 . . . . Parts Scanalyzed . | . . . . . . . . . . . . . . . . . . . . . . . . . . . . . . . Part Schematics Acquired . | . . . . . . . . . . . . . . . . . . . . . . . . . . . . . . . Parts Damaged . | . . . . . . . . . . . . . . . . . . . . . . . . . . . . . . . Bothacking | -11 -10 -10 -8 -8 -8 -8 -7 -7 -7 -7 -6 -6 -6 -5 -5 -5 -5 -5 -5 -5 -4 -4 -4 -4 -3 -3 -3 -3 -2 -1 ------------ Run | Yrd Mat Sub Mat Gar Mat Gar Fac Low Low Dat Pro Fac Gar Fac Was Fac Ext Cet Arc Hub Fac Upp Upp War Pro Res Gar Res Res Acc Used RIF Installer . | . . . . . . . . . . . . . . . . . . . . . . . . . . . . . . . Robots Hacked . | . . . . . . . . . . . . . . . . . . . . . . . . . . . . . . . Non-combat . | . . . . . . . . . . . . . . . . . . . . . . . . . . . . . . . Combat . | . . . . . . . . . . . . . . . . . . . . . . . . . . . . . . . Robot Hacks Applied . | . . . . . . . . . . . . . . . . . . . . . . . . . . . . . . . Relay Couplers Released 78 | . . . . 23 . 19 3 . . . . . 16 2 . . . . . . . . . . . . 15 . . . Machine Destruction 75 | . . . . 23 . 19 . . . . . . 16 2 . . . . . . . . . . . . 15 . . . Programmers 3 | . . . . . . . 3 . . . . . . . . . . . . . . . . . . . . . . . Fabnet Peak Effective % . | . . . . . . . . . . . . . . . . . . . . . . . . . . . . . . . Robots Rewired 24 | . . . . 3 . . . . . . . . 4 . . . 14 . . . . 3 . . . . . . . . Allies Hacked 1 | . . . . . . . . . . . . . . . . . . . . . . 1 . . . . . . . . Hacks Repelled . | . . . . . . . . . . . . . . . . . . . . . . . . . . . . . . . Allies | -11 -10 -10 -8 -8 -8 -8 -7 -7 -7 -7 -6 -6 -6 -5 -5 -5 -5 -5 -5 -5 -4 -4 -4 -4 -3 -3 -3 -3 -2 -1 -------- Run | Yrd Mat Sub Mat Gar Mat Gar Fac Low Low Dat Pro Fac Gar Fac Was Fac Ext Cet Arc Hub Fac Upp Upp War Pro Res Gar Res Res Acc Total Allies 37 | . . . . 3 . 1 . . . . . . 6 1 . . 21 . . . . 3 . . . . 2 . . . Largest Group 14 | . . . . 3 . 1 . . . . . . 4 4 . . 14 14 9 7 . 3 . . . . 2 . . . Highest-Rated Group 562 | . . . . 63 . 25 . . . . . . 160 155 . . 562 562 428 249 . 90 . . . . 175 . . . Highest-Rated Ally 159 | . . . . 21 . 25 . . . . . . 80 99 . . 159 159 159 39 . 30 . . . . 95 . . . Initial Warlord ECA Mod 30 | . . . . . 13 13 19 19 19 19 18 18 18 25 25 25 25 25 25 25 24 23 23 23 22 22 22 30 29 28 Warlord Squad Rendezvous 1 | . . . . . . . . . . . . . . . . . . . . . 1 . . . . . . . . . Dakka 1 | . . . . . . . . . . . . . . . . . . . . . 1 . . . . . . . . . Total Orders 30 | . . . . . . . . . . . . . . 1 . . . 16 . 1 12 . . . . . . . . . STAY 8 | . . . . . . . . . . . . . . . . . . 7 . 1 . . . . . . . . . . ROAM 3 | . . . . . . . . . . . . . . . . . . 3 . . . . . . . . . . . . FOLLOW 7 | . . . . . . . . . . . . . . . . . . 6 . . 1 . . . . . . . . . EXPLORE 11 | . . . . . . . . . . . . . . 1 . . . . . . 10 . . . . . . . . . RETURN 1 | . . . . . . . . . . . . . . . . . . . . . 1 . . . . . . . . . Ally Attacks 355 | . . . . 32 . 2 . . . . . . 63 67 . . 66 24 24 56 . 2 . . . . 19 . . . Total Damage 11198 | . . . . 762 . 79 . . . . . . 2529 3588 . . 1622 478 456 889 . 87 . . . . 708 . . . Kills 91 | . . . . 6 . 1 . . . . . . 16 36 . . 10 5 6 8 . . . . . . 3 . . . Allies Corrupted 2 | . . . . . . . . . . . . . . . . . . . . 1 1 . . . . . . . . . Allies Melted 2 | . . . . . . . . . . . . . . 1 . . . . . . . . . . . . . . 1 . Intel | -11 -10 -10 -8 -8 -8 -8 -7 -7 -7 -7 -6 -6 -6 -5 -5 -5 -5 -5 -5 -5 -4 -4 -4 -4 -3 -3 -3 -3 -2 -1 ------- Run | Yrd Mat Sub Mat Gar Mat Gar Fac Low Low Dat Pro Fac Gar Fac Was Fac Ext Cet Arc Hub Fac Upp Upp War Pro Res Gar Res Res Acc Active Infowar (turns) 27870 | 23 799 1894 998 205 1467 118 1074 558 788 91 674 268 1309 1686 123 1434 1542 399 236 266 1884 1082 1278 646 132 2177 638 1975 1578 528 Sensors 3770 | . . . . 2 . . . . . . . . . . . . . . . . 26 1076 1204 641 . 821 . . . . IFF 4531 | . . . . . . . . . . . . . 3 1281 . 1172 1542 16 . . 517 . . . . . . . . . Terrain 10034 | . . . . . . . . . . . . . . 364 123 837 727 399 236 266 970 1079 1278 646 . 212 . 791 1578 528 Seismic 8955 | 23 799 1894 998 203 1467 118 1074 558 788 91 674 268 . . . . . . . . . . . . . . . . . . Decoding 2947 | . . . . . . . . . . . . . . . . . . . . . . . . . 132 2177 638 . . . Machine Analysis 81 | . . . . . . . . . . . . . . . . 81 . . . . . . . . . . . . . . Triangulation 1348 | . . . . . . . . . . . . . 1306 42 . . . . . . . . . . . . . . . . Cloaking 1089 | . . . . . . . . . . . . . . . . . . . . . 898 2 189 . . . . . . . Jamming 2269 | . . . . . . . . . . . . . . . . . . . . . 352 . . . . . . 1917 . . ECM 1 | . . . . . . . . . . . . . . . . . . . . . . 1 . . . . . . . . Robot Analysis Total 3 | . 2 . . . . . . . . . . . . . . 1 . . . . . . . . . . . . . . Derelict Logs Recovered 7 | . . 2 . . . . . 1 1 . . . . . . . . . . . . 1 2 . . . . . . . Drone Launches 26 | . . . . . . . . . . . . . . 3 . . . . . . 23 . . . . . . . . . Drone Recoveries 13 | . . . . . . . . . . . . . . . . . . . . . 13 . . . . . . . . . Decoded 0b10 Intel 79 | . . . . . . . . . . . . . . . . . . . . . . . . . . 58 21 . . . Traps 9 | . . . . . . . . . . . . . . . . . . . . . . . . . . 4 5 . . . Emergency Access 6 | . . . . . . . . . . . . . . . . . . . . . . . . . . 5 1 . . . Items 57 | . . . . . . . . . . . . . . . . . . . . . . . . . . 46 11 . . . Machines 2 | . . . . . . . . . . . . . . . . . . . . . . . . . . . 2 . . . Patrols 2 | . . . . . . . . . . . . . . . . . . . . . . . . . . . 2 . . . Guards 2 | . . . . . . . . . . . . . . . . . . . . . . . . . . 2 . . . . Exits 1 | . . . . . . . . . . . . . . . . . . . . . . . . . . 1 . . . . Exploration | -11 -10 -10 -8 -8 -8 -8 -7 -7 -7 -7 -6 -6 -6 -5 -5 -5 -5 -5 -5 -5 -4 -4 -4 -4 -3 -3 -3 -3 -2 -1 ------------- Run | Yrd Mat Sub Mat Gar Mat Gar Fac Low Low Dat Pro Fac Gar Fac Was Fac Ext Cet Arc Hub Fac Upp Upp War Pro Res Gar Res Res Acc Turns Passed 36560 | 110 1210 1894 1096 1649 2081 1019 1075 1088 788 91 810 584 1309 1759 123 1551 1570 399 236 266 3424 1253 1278 847 441 2177 1850 2177 1583 822 Spaces Moved 19295 | 45 599 1005 509 790 1112 468 708 549 504 76 529 335 642 790 65 843 733 242 89 143 1551 910 954 632 333 1034 756 940 945 464 Core 205 | 4 . . . . . . . . . . . . . . . . . . . . . . . . . . 1 . . 200 Treads 5844 | 41 599 980 57 79 60 4 50 458 . . . . 31 31 . . . . 18 . 145 . . . . 681 461 940 945 264 Legs 294 | . . . . . . . . . . . . . . . . . . . . . . . . . . . 294 . . . Wheels 12952 | . . 25 452 711 1052 464 658 91 504 76 529 335 611 759 65 843 733 242 71 143 1406 910 954 632 333 353 . . . . Hover . | . . . . . . . . . . . . . . . . . . . . . . . . . . . . . . . Flight . | . . . . . . . . . . . . . . . . . . . . . . . . . . . . . . . Fastest Speed 50 | 50 160 110 95 115 110 110 110 110 121 121 106 102 102 106 121 115 113 128 128 120 109 118 118 120 120 118 111 155 155 50 Average Speed 136 | 150 160 169 129 132 127 126 128 160 121 121 114 107 112 129 121 129 136 128 195 128 140 118 124 120 120 155 162 159 155 109 Slowest Speed 1700 | 160 160 260 240 240 240 238 330 238 121 121 220 160 240 250 121 265 280 128 240 210 240 118 140 120 120 260 1700 220 200 250 Overloaded Moves . | . . . . . . . . . . . . . . . . . . . . . . . . . . . . . . . Propulsion Burnouts . | . . . . . . . . . . . . . . . . . . . . . . . . . . . . . . . Robots Hopped . | . . . . . . . . . . . . . . . . . . . . . . . . . . . . . . . Potential Cave-ins 16 | . . . . . . . . . . . . . . . . . . . . 2 4 . . 1 . . 1 5 1 2 Cave-ins Triggered 1 | . . . . . . . . . . . . . . . . . . . . . . . . . . . . . . 1 Exploration Rate (%) 55 | 4 96 71 43 87 80 77 26 71 56 68 71 13 70 18 82 26 84 59 75 11 36 91 91 87 53 31 76 27 26 15 Regions Visited 30 Branch Regions 13 Pre-discovered Areas 10 | . 2 2 2 . . . . 1 1 1 . . . . . . . . . . . . . . . 1 . . . . Known Exits Taken 12 | . . 1 1 . 1 . . . . . . 1 . . . 1 . . . . 1 1 1 1 . 1 . 1 1 . Unknown Exits Taken 12 | 1 1 . . . . . 1 1 1 1 1 . . . . . 1 1 1 1 . . . . 1 . . . . . Scrap Searched 23 | . . 8 . . . . . 1 3 . 3 . . . . . . . . . . 3 3 . 2 . . . . . Spaces Dug 146 | . 1 2 2 4 5 3 3 1 . . 1 3 6 13 . 5 12 . . 3 35 4 . 2 1 20 11 5 . 4 Terrain Destroyed 2086 | . 1 57 27 166 9 5 3 10 . . 27 38 9 23 352 296 73 1 2 184 155 49 170 68 7 102 71 61 2 118 Melee 63 | . . . 1 4 1 3 3 . . . 1 2 6 6 . 1 2 . . 1 13 . . 2 1 12 4 . . . Projectile 388 | . 1 13 7 . 8 2 . 2 . . 2 3 3 16 . 10 36 1 2 9 99 45 13 3 6 18 16 22 2 49 AOE 1622 | . . 44 19 162 . . . 8 . . 24 33 . . 352 285 35 . . 174 42 2 157 63 . 69 45 39 . 69 Terrain Rammed . | . . . . . . . . . . . . . . . . . . . . . . . . . . . . . . . Walls Destroyed . | . . . . . . . . . . . . . . . . . . . . . . . . . . . . . . . Machines Disabled . | . . . . . . . . . . . . . . . . . . . . . . . . . . . . . . . Actions | -11 -10 -10 -8 -8 -8 -8 -7 -7 -7 -7 -6 -6 -6 -5 -5 -5 -5 -5 -5 -5 -4 -4 -4 -4 -3 -3 -3 -3 -2 -1 --------- Run | Yrd Mat Sub Mat Gar Mat Gar Fac Low Low Dat Pro Fac Gar Fac Was Fac Ext Cet Arc Hub Fac Upp Upp War Pro Res Gar Res Res Acc Total 26382 | 72 742 1129 830 1224 1659 721 811 733 651 75 683 457 1023 1290 80 1169 1139 316 137 186 2502 1011 1004 699 360 1416 1137 1442 1046 638 Wait 3210 | 11 64 40 174 187 353 70 25 137 107 . 71 25 128 230 . 136 113 44 17 4 600 25 11 12 3 168 103 247 29 76 Move 19266 | 44 598 1004 509 789 1111 467 707 548 503 75 528 334 641 790 64 842 732 241 88 142 1550 909 953 631 332 1034 754 939 944 463 Hop . | . . . . . . . . . . . . . . . . . . . . . . . . . . . . . . . Pick Up 402 | 4 9 12 23 8 26 9 6 6 2 . 11 12 13 32 1 29 19 5 6 1 39 5 3 5 2 20 33 39 17 5 Fast Attach 221 | 7 2 1 6 2 3 1 . 4 1 . 3 4 3 19 . 10 16 2 1 2 29 4 2 9 4 22 27 23 11 3 Attach 230 | . 1 2 8 2 3 6 3 7 4 . 13 8 4 23 1 18 15 1 3 1 26 3 3 3 2 13 26 11 5 15 Detach 41 | . 2 . . . . . . . . . 2 2 1 5 . 4 3 . . . 5 . 1 1 . 6 6 2 1 . Swap 422 | . 7 14 17 32 36 26 8 4 5 . 11 8 15 27 . 28 8 3 6 3 39 10 11 5 4 18 24 33 7 13 Drop 438 | . 5 11 17 10 29 6 3 10 5 . 8 7 10 31 2 24 16 7 7 4 43 7 4 15 6 36 30 59 24 2 Fire 1469 | 6 54 45 72 90 96 74 28 17 24 . 33 45 73 112 12 62 58 13 5 25 122 31 16 16 4 81 107 86 8 54 Melee 347 | . . . 4 41 2 46 5 . . . 3 12 59 21 . 6 39 . 4 4 48 . . 2 3 17 22 3 . 6 Ram 2 | . . . . . . . . . . . . . . . . 2 . . . . . . . . . . . . . . Kick . | . . . . . . . . . . . . . . . . . . . . . . . . . . . . . . . Crush 2 | . . . . . . . . . . . . . . . . . . . . . 1 . . . . 1 . . . . Escape Stasis 169 | . . . . 40 . 16 26 . . . . . 34 . . 8 39 . . . . . . . . . 5 . . 1 Rewire 163 | . . . . 23 . . . . . . . . 42 . . . 81 . . . . 17 . . . . . . . . Trap . | . . . . . . . . . . . . . . . . . . . . . . . . . . . . . . . Miscellaneous . | . . . . . . . . . . . . . . . . . . . . . . . . . . . . . . . Route ------- -11/Scrapyard -10/Materials (discovered 6 exits: *Mat x3 / [*Min x2] / *Sub) -10/Subcaves (discovered 3 exits: *Mat x2 / Rec) -8/Materials (discovered 2 exits: *Fac / Gar) -8/Garrison (discovered 3 exits: *Mat x3) -8/Materials (discovered 3 exits: *Fac x2 / Gar) -8/Garrison (discovered 3 exits: *Fac x3) -7/Factory -7/Lower Caves -7/Lower Caves (discovered 2 exits: *Fac / *Dat) -7/Data Miner -6/Proximity Caves -6/Factory -6/Garrison (discovered 3 exits: [*Fac x3]) -5/Factory -5/Waste -5/Factory (discovered 4 exits: *Upp x2 / *Ext x2) -5/Extension (discovered 2 exits: *Fac / *Cet) -5/Cetus -5/Archives (discovered 3 exits: *Fac / *Hub x2) -5/Hub_04(d) -4/Factory (discovered 2 exits: *Upp x2) -4/Upper Caves -4/Upper Caves (discovered 2 exits: *Res / *War) -4/Warlord -3/Proximity Caves -3/Research (discovered 4 exits: *Res x2 / Tes / Gar) -3/Garrison (discovered 3 exits: *Res x3) -3/Research -2/Research (discovered 2 exits: *Acc x2) -1/Access (discovered 1 exit: Com) History --------- Turn | Location | Event 13 | -11/Scrapyard | Discovered new exit (range 15) 111 | -11/Scrapyard | Entered Materials 303 | -10/Materials | Build established: Mutant 365 | -10/Materials | Discovered new exit (range 15) 681 | -10/Materials | Discovered new exit (range 6) 732 | -10/Materials | Discovered new exit (range 7) 741 | -10/Materials | Discovered new exit (range 16) 875 | -10/Materials | Identified exit to Materials 918 | -10/Materials | Learned location of 2 exits from Subcaves 961 | -10/Materials | Discovered new exit (range 16) 976 | -10/Materials | Learned 4 Recycling zone layouts 990 | -10/Materials | Learned location of 2 exits from Mines 992 | -10/Materials | Learned 2 Storage zone layouts 1003 | -10/Materials | Loaded intel: 13 trap records 1022 | -10/Materials | Learned location of 1 exit from Storage 1093 | -10/Materials | Learned Materials emergency access door positions 1321 | -10/Materials | Entered Subcaves 1322 | -10/Subcaves | Identified exit to Materials 1323 | -10/Subcaves | Identified exit to Recycling 2180 | -10/Subcaves | Learned location of Zion (-6) 2180 | -10/Subcaves | Met a Zionite searching for "candidates" 2296 | -10/Subcaves | Shifting Twisted Machinery released Sub. Power Source 2296 | -10/Subcaves | Shifting Twisted Machinery released Sub. Laser 2824 | -10/Subcaves | A swath of the cavern ceiling suddenly collapsed 3028 | -10/Subcaves | Learned Materials trap positions 3170 | -10/Subcaves | Visited 4L-MR0's lab 3215 | -10/Subcaves | Entered Materials 3215 | -8/Materials | Evolved 4 slots: Propulsion x2, Utility x1, Weapon x1 3216 | -8/Materials | Loaded intel: 16 trap records 3680 | -8/Materials | Build established: Tank 3834 | -8/Materials | Discovered new exit (range 4) 4173 | -8/Materials | Garrison activated, responded to threat 4311 | -8/Materials | Identified exit to Garrison 4311 | -8/Materials | Entered Garrison 4373 | -8/Garrison | Garrison Relay disabled 4496 | -8/Garrison | Triggered checkpoint 4515 | -8/Garrison | Triggered checkpoint 4544 | -8/Garrison | Destroyed 12 combat bots 4605 | -8/Garrison | Triggered checkpoint 4677 | -8/Garrison | Discovered new exit (range 11) 4749 | -8/Garrison | Triggered checkpoint 4807 | -8/Garrison | Garrison Relay disabled 4977 | -8/Garrison | Garrison Relay disabled 5116 | -8/Garrison | Garrison Relay disabled 5175 | -8/Garrison | Triggered checkpoint 5185 | -8/Garrison | Triggered checkpoint 5395 | -8/Garrison | Triggered checkpoint 5457 | -8/Garrison | Triggered checkpoint 5518 | -8/Garrison | Discovered new exit (range 15) 5607 | -8/Garrison | Phase Generator disabled 5731 | -8/Garrison | Triggered checkpoint 5814 | -8/Garrison | Garrison Relay disabled 5889 | -8/Garrison | Discovered new exit (range 7) 5889 | -8/Garrison | Discovered new exit (range 52) 5889 | -8/Garrison | Discovered new exit (range 62) 5960 | -8/Garrison | Entered Materials 6600 | -8/Materials | Build established: Scavenger-Tank 6694 | -8/Materials | Discovered new exit (range 16) 6784 | -8/Materials | Repaired Enh. Autogun 6845 | -8/Materials | Repaired Enh. Autogun 7160 | -8/Materials | First assault squad dispatched 7237 | -8/Materials | Build established: Tank 7269 | -8/Materials | Discovered new exit (range 16) 8037 | -8/Materials | Identified exit to Garrison 8041 | -8/Materials | Entered Garrison 8113 | -8/Garrison | Triggered checkpoint 8190 | -8/Garrison | Lost 3 parts (2n1w) 8251 | -8/Garrison | Garrison Relay disabled 8275 | -8/Garrison | Rescued a captive Derelict 8337 | -8/Garrison | Triggered checkpoint 8365 | -8/Garrison | Triggered checkpoint 8420 | -8/Garrison | Core integrity fell below 50% 8442 | -8/Garrison | Triggered checkpoint 8512 | -8/Garrison | Discovered new exit (range 5) 8539 | -8/Garrison | Triggered checkpoint 8543 | -8/Garrison | Discovered new exit (range 30) 8543 | -8/Garrison | Discovered new exit (range 57) 8543 | -8/Garrison | Discovered new exit (range 23) 8638 | -8/Garrison | Garrison Relay disabled 8650 | -8/Garrison | Garrison Relay disabled 8801 | -8/Garrison | Build established: Mutant 8811 | -8/Garrison | Triggered checkpoint 8822 | -8/Garrison | Garrison Relay disabled 9060 | -8/Garrison | Entered Factory 9060 | -7/Factory | Evolved 2 slots: Propulsion x1, Utility x1 9419 | -7/Factory | Discovered new exit (range 14) 9791 | -7/Factory | Build established: Tank 10135 | -7/Factory | Entered Lower Caves 10305 | -7/Lower Caves | Spotted B-75 Beast 10393 | -7/Lower Caves | Destroyed B-75 Beast 10397 | -7/Lower Caves | Met a Warlord Commander 10398 | -7/Lower Caves | Learned location of Warlord (-4) 10399 | -7/Lower Caves | Warlord Commander delivered Encrypted Comm Array 10404 | -7/Lower Caves | Found Encrypted Comm Array 11209 | -7/Lower Caves | Discovered new exit (range 7) 11223 | -7/Lower Caves | Entered another Lower Caves area 11338 | -7/Lower Caves | Discovered new exit (range 5) 11695 | -7/Lower Caves | Encountered a Warlord checkpoint 11739 | -7/Lower Caves | Found Prototype Device 11902 | -7/Lower Caves | Discovered new exit (range 15) 12011 | -7/Lower Caves | Entered Data Miner 12011 | -7/Data Miner | Discovered new exit (range 6) 12034 | -7/Data Miner | Met Data Miner 12055 | -7/Data Miner | Learned location of Section 7 (-2) 12055 | -7/Data Miner | Acquired the access code to Warlord's prototype stash 12072 | -7/Data Miner | Received God Mode back door access code from Data Miner 12102 | -7/Data Miner | Entered Proximity Caves 12139 | -6/Proximity Caves | Spotted B-75 Beast 12169 | -6/Proximity Caves | Destroyed B-75 Beast 12183 | -6/Proximity Caves | Lost 3 parts (1n2w) 12432 | -6/Proximity Caves | Lost 3 parts (1n2w) 12764 | -6/Proximity Caves | Build established: Mutant 12875 | -6/Proximity Caves | Attracted the attention of an 0b10 checkpoint 12895 | -6/Proximity Caves | Discovered new exit (range 10) 12912 | -6/Proximity Caves | Entered Factory 12912 | -6/Factory | Evolved 2 slots: Utility x2 12928 | -6/Factory | Identified Heart of Steel 13260 | -6/Factory | Lost 5 parts (2n2u1w) 13489 | -6/Factory | Identified exit to Garrison 13496 | -6/Factory | Entered Garrison 13514 | -6/Garrison | Triggered checkpoint 13519 | -6/Garrison | Found embedded Infiltrators 13571 | -6/Garrison | Garrison Relay disabled 13685 | -6/Garrison | Triggered checkpoint 13693 | -6/Garrison | Triggered checkpoint 13744 | -6/Garrison | Triggered checkpoint 13828 | -6/Garrison | Garrison Relay disabled 13887 | -6/Garrison | Discovered new exit (range 15) 14019 | -6/Garrison | Triggered checkpoint 14077 | -6/Garrison | Discovered new exit (range 12) 14284 | -6/Garrison | Triggered checkpoint 14339 | -6/Garrison | Garrison Relay disabled 14534 | -6/Garrison | Triggered checkpoint 14567 | -6/Garrison | Garrison Relay disabled 14768 | -6/Garrison | Discovered new exit (range 12) 14805 | -6/Garrison | Entered Factory 14805 | -5/Factory | Accompanied by 4 allies 14805 | -5/Factory | Evolved 2 slots: Power x1, Utility x1 14806 | -5/Factory | Identified exit to Upper Caves 14901 | -5/Factory | Spotted B-75 Beast 15481 | -5/Factory | Build established: Scavenger-Tank 16005 | -5/Factory | First assault squad dispatched 16026 | -5/Factory | Incoming assault squad redirected 16101 | -5/Factory | Found Prototype Launcher 16129 | -5/Factory | Heart of Steel transformed into Warbot 16150 | -5/Factory | Identified Scatter Rocket Array 16175 | -5/Factory | Lost 10 parts (1p2n3u4w) 16398 | -5/Factory | Found Prototype Processor 16398 | -5/Factory | Identified Exp. Targeting Computer 16425 | -5/Factory | Build established: Scavenger-Mutant 16564 | -5/Factory | Sucked down chute 16564 | -5/Factory | Entered Waste 16571 | -5/Waste | Spotted C-40 Crusher 16579 | -5/Waste | EMP discharged 16589 | -5/Waste | Destroyed C-40 Crusher 16595 | -5/Waste | Spotted C-40 Crusher 16602 | -5/Waste | Destroyed C-40 Crusher 16619 | -5/Waste | Spotted C-40 Crusher 16622 | -5/Waste | Destroyed C-40 Crusher 16624 | -5/Waste | Spotted C-40 Crusher 16625 | -5/Waste | Spotted C-40 Crusher 16626 | -5/Waste | Destroyed C-40 Crusher 16629 | -5/Waste | Destroyed C-40 Crusher 16633 | -5/Waste | Spotted C-40 Crusher 16634 | -5/Waste | Destroyed C-40 Crusher 16674 | -5/Waste | Discovered new exit (range 12) 16679 | -5/Waste | EMP discharged 16679 | -5/Waste | System corruption reached 10% 16687 | -5/Waste | Entered Factory 16975 | -5/Factory | Discovered exit to Upper Caves (range 15) 16987 | -5/Factory | First assault squad dispatched 17341 | -5/Factory | Repaired Imp. Terrain Scanner 17373 | -5/Factory | Identified exit to Extension 17392 | -5/Factory | Watched by a mysterious "MATRIX" hacker. 17606 | -5/Factory | Cargo convoy interrupted 17946 | -5/Factory | Destroyed 13 combat bots 17951 | -5/Factory | Lost 4 parts (1n2u1w) 17996 | -5/Factory | Lost 3 parts (1p2u) 18203 | -5/Factory | Incoming assault squad redirected 18238 | -5/Factory | Entered Extension 18304 | -5/Extension | Core integrity fell below 50% 18358 | -5/Extension | Lost 4 parts (2n2w) 18702 | -5/Extension | Rescued a captive Derelict 18737 | -5/Extension | Rescued a captive Derelict 18783 | -5/Extension | Spotted B-75 Beast 18817 | -5/Extension | Destroyed B-75 Beast 18861 | -5/Extension | Core integrity fell below 20% 18899 | -5/Extension | Lost 5 parts (1n2u2w) 18934 | -5/Extension | Spotted B-75 Beast 18970 | -5/Extension | Allies destroyed B-75 Beast 19150 | -5/Extension | Rescued a captive Derelict 19371 | -5/Extension | Rescued a captive Derelict 19372 | -5/Extension | Rescued a captive Derelict 19420 | -5/Extension | Rescued A7 19590 | -5/Extension | Rescued a captive Derelict 19749 | -5/Extension | Discovered new exit (range 10) 19751 | -5/Extension | Discovered new exit (range 6) 19756 | -5/Extension | Build established: Scavenger-Skirmisher 19808 | -5/Extension | Entered Cetus 19808 | -5/Cetus | Accompanied by 14 allies (A7) 19813 | -5/Cetus | Acquired a Cetus Manufacturing Module code from A7 19823 | -5/Cetus | Spotted Cetus Guard 19823 | -5/Cetus | Spotted Cetus Guard 19824 | -5/Cetus | Spotted Cetus Guard 19834 | -5/Cetus | Allies destroyed Cetus Guard 19835 | -5/Cetus | Allies destroyed Cetus Guard 19839 | -5/Cetus | Allies destroyed Cetus Guard 19839 | -5/Cetus | Spotted Cetus Guard 19844 | -5/Cetus | Allies destroyed Cetus Guard 19868 | -5/Cetus | Lost 5 allies 19920 | -5/Cetus | Cetus Manufacturing Module disabled 19942 | -5/Cetus | Failed to start Cetus Manufacturing Module 19957 | -5/Cetus | Escorted A7 to Cetus Mainframe 19974 | -5/Cetus | Discovered new exit (range 15) 20122 | -5/Cetus | Build established: Scavenger-Tank 20207 | -5/Cetus | Entered Archives 20207 | -5/Archives | Accompanied by 9 allies (A7) 20212 | -5/Archives | Received a hacking code to weaken MAIN.C 20274 | -5/Archives | Discovered new exit (range 16) 20357 | -5/Archives | Discovered new exit (range 14) 20398 | -5/Archives | Discovered new exit (range 14) 20443 | -5/Archives | Entered Hub_04(d) 20443 | -5/Hub_04(d) | Accompanied by 7 allies 20509 | -5/Hub_04(d) | Discovered new exit (range 8) 20592 | -5/Hub_04(d) | Build established: Scavenger-Mutant 20674 | -5/Hub_04(d) | Lost 5 allies 20698 | -5/Hub_04(d) | Network Hub disabled 20701 | -5/Hub_04(d) | Spotted Lightning 20706 | -5/Hub_04(d) | Spotted Lightning 20709 | -5/Hub_04(d) | Spotted Lightning 20709 | -5/Hub_04(d) | Entered Factory 20709 | -4/Factory | Evolved 2 slots: Utility x1, Weapon x1 20936 | -4/Factory | Build established: Scavenger-Tank 21055 | -4/Factory | Discovered new exit (range 6) 21441 | -4/Factory | Lost 5 parts (4u1w) 21598 | -4/Factory | Spotted B-86 Titan 21795 | -4/Factory | Destroyed B-86 Titan 21820 | -4/Factory | Lost 6 parts (1p3u2w) 22073 | -4/Factory | Cargo convoy interrupted 22240 | -4/Factory | Lost 3 allies 22652 | -4/Factory | Repaired Centrium Wheel+ 22739 | -4/Factory | Repaired Corrupted Centrium Wheel+ 22803 | -4/Factory | Repaired Centrium Wheel+ 22894 | -4/Factory | Repaired Scatter Rocket Array 22957 | -4/Factory | Repaired Centrium Wheel+ 23107 | -4/Factory | Repaired Rnf. Fission Core 23195 | -4/Factory | Garrison activated, responded to threat 23472 | -4/Factory | Identified exit to Upper Caves 23680 | -4/Factory | Joined by Warlord Dakka squad 23834 | -4/Factory | Build established: Scientist-Tank 24025 | -4/Factory | P-70 Sage assimilated allied LH-20N(s) 24065 | -4/Factory | Lost 3 allies 24133 | -4/Factory | Entered Upper Caves 24253 | -4/Upper Caves | Attacked by a delusional Derelict stockpiling Unaware 24333 | -4/Upper Caves | P-70 Sage assimilated allied Warrior 7b 24401 | -4/Upper Caves | Build established: Scavenger-Skirmisher 24739 | -4/Upper Caves | Attracted the attention of an 0b10 checkpoint 25005 | -4/Upper Caves | Encountered a Warlord checkpoint 25005 | -4/Upper Caves | Spotted B-86 Titan 25011 | -4/Upper Caves | Discovered new exit (range 7) 25385 | -4/Upper Caves | Identified exit to Upper Caves 25386 | -4/Upper Caves | Entered another Upper Caves area 25398 | -4/Upper Caves | Ambushed by wild Derelicts 25431 | -4/Upper Caves | Discovered new exit (range 13) 25464 | -4/Upper Caves | Build established: Scientist-Skirmisher 25605 | -4/Upper Caves | Learned Research stockpile data 26031 | -4/Upper Caves | Attracted the attention of an 0b10 checkpoint 26182 | -4/Upper Caves | Discovered new exit (range 4) 26305 | -4/Upper Caves | Learned 12 Research zone layouts 26663 | -4/Upper Caves | Identified exit to Warlord 26664 | -4/Upper Caves | Entered Warlord 26706 | -4/Warlord | System corruption cleaned by Quarantine Array 26841 | -4/Warlord | Learned Testing trap positions 26842 | -4/Warlord | Learned 4 Quarantine zone layouts 26842 | -4/Warlord | Learned 4 Command zone layouts 26843 | -4/Warlord | Learned Armory security intel 26843 | -4/Warlord | Learned Research garrison access intel 26962 | -4/Warlord | Found Prototype Device 26962 | -4/Warlord | Identified Minesniffer Drone Bay 27032 | -4/Warlord | Visited the Vortex Lab 27043 | -4/Warlord | Found Prototype Energy Gun 27043 | -4/Warlord | Identified Vortex Shotgun 27046 | -4/Warlord | Warlord's base attacked by MAIN.C 27051 | -4/Warlord | Found Prototype Energy Gun 27051 | -4/Warlord | Identified Vortex Rifle 27053 | -4/Warlord | Found Vortex Rifle 27062 | -4/Warlord | Found Vortex Shotgun 27155 | -4/Warlord | Met Warlord 27290 | -4/Warlord | Opened Warlord's prototype stash 27294 | -4/Warlord | Found Prototype Device 27294 | -4/Warlord | Identified System Purifier 27297 | -4/Warlord | Found Prototype Processor 27297 | -4/Warlord | Identified Exp. Core Analyzer 27305 | -4/Warlord | Found Prototype Device 27305 | -4/Warlord | Identified Exp. Phase Shifter 27315 | -4/Warlord | Found Prototype Reactor 27396 | -4/Warlord | Warlord forces counterattacked 27420 | -4/Warlord | Spotted Striker 27495 | -4/Warlord | Destroyed 7 combat bots 27499 | -4/Warlord | Discovered new exit (range 12) 27510 | -4/Warlord | Identified exit to Proximity Caves 27511 | -4/Warlord | Entered Proximity Caves 27596 | -3/Proximity Caves | Build established: Scientist-Tank 27806 | -3/Proximity Caves | Found DCF Scrap (13 items) 27934 | -3/Proximity Caves | Discovered new exit (range 12) 27952 | -3/Proximity Caves | Entered Research 27952 | -3/Research | Evolved 2 slots: Propulsion x1, Utility x1 27953 | -3/Research | Identified exit to Testing 27954 | -3/Research | Identified exit to Research 27956 | -3/Research | Loaded intel: 3 garrison access locations 28654 | -3/Research | Found Prototype Launcher 28654 | -3/Research | Identified Adv. Micro-nuke Launcher 28898 | -3/Research | Identified Vortex Chain Reactor 28919 | -3/Research | Build established: Hacker-Tank 29923 | -3/Research | Learned Quarantine non-interactive machine intel 29958 | -3/Research | Learned Testing garrison access intel 29981 | -3/Research | Learned Access scanalyzer intel 29994 | -3/Research | Loaded intel: 108 trap records 29996 | -3/Research | Learned Access emergency access door positions 30001 | -3/Research | Learned Testing terminal intel 30041 | -3/Research | Learned 8 Access zone layouts 30129 | -3/Research | Identified exit to Garrison 30129 | -3/Research | Entered Garrison 30287 | -3/Garrison | Spotted B-86 Titan 30309 | -3/Garrison | Triggered checkpoint 30399 | -3/Garrison | Destroyed B-86 Titan 30404 | -3/Garrison | Lost 3 parts (1n2u) 30465 | -3/Garrison | Found Unknown Protection 30465 | -3/Garrison | Identified Hvy. Reflective Plating 30544 | -3/Garrison | Triggered checkpoint 30546 | -3/Garrison | Triggered checkpoint 30610 | -3/Garrison | Destroyed 19 combat bots 30641 | -3/Garrison | Discovered new exit (range 11) 30669 | -3/Garrison | Triggered checkpoint 30701 | -3/Garrison | System corruption reached 10% 30758 | -3/Garrison | Core integrity fell below 50% 30810 | -3/Garrison | Lost 22 parts (2p4n7u9w) 30864 | -3/Garrison | Found Quantum Capacitor 30928 | -3/Garrison | Found Quantum Capacitor 30979 | -3/Garrison | Triggered checkpoint 30979 | -3/Garrison | Found embedded Infiltrators 31007 | -3/Garrison | Garrison Relay disabled 31098 | -3/Garrison | Build established: Scavenger-Mutant 31249 | -3/Garrison | Triggered checkpoint 31347 | -3/Garrison | Garrison Relay disabled 31520 | -3/Garrison | Discovered new exit (range 12) 31539 | -3/Garrison | Attempted to access garrison exit controls, blocked by remote lockdown 31645 | -3/Garrison | Triggered checkpoint 31764 | -3/Garrison | Garrison Relay disabled 31917 | -3/Garrison | Discovered new exit (range 8) 31930 | -3/Garrison | Spotted B-90 Cyclops 31979 | -3/Garrison | Entered Research 31997 | -3/Research | Build established: Scavenger-Tank 31998 | -3/Research | Found Prototype Device 31998 | -3/Research | Identified Exp. Thermal Shield 32479 | -3/Research | First assault squad dispatched 32497 | -3/Research | Incoming assault squad redirected 32728 | -3/Research | Found Fusion Bomb Launcher 32734 | -3/Research | Found Exp. Thermal Shield 33491 | -3/Research | Build established: Scavenger-Gunner 33747 | -3/Research | System corruption reached 30% 33870 | -3/Research | Build established: Scavenger-Tank 34127 | -3/Research | Lost 4 parts (2u2w) 34150 | -3/Research | Discovered exit to Research (range 5) 34156 | -3/Research | Entered another Research area 34156 | -2/Research | Warlord forces began assault on 0b10 34156 | -2/Research | Evolved 2 slots: Utility x1, Weapon x1 34157 | -2/Research | Identified exit to Access 34181 | -2/Research | Distinguished unit "Bridgeowners Association" dispatched to help 34181 | -2/Research | Distinguished unit "Lair Dwellers" dispatched to help 34266 | -2/Research | Research machine network offline 34504 | -2/Research | Spotted Striker 34536 | -2/Research | Lost 3 allies 34719 | -2/Research | Met DD-05H 34719 | -2/Research | Met up with Warlord 34939 | -2/Research | Discovered exit to Access (range 9) 35007 | -2/Research | Spotted Executioner 35011 | -2/Research | Spotted Executioner 35018 | -2/Research | Found Prototype Processor 35018 | -2/Research | Identified Exp. Targeting Computer 35028 | -2/Research | Found Prototype Device 35028 | -2/Research | Identified Adv. Kinecellerator 35658 | -2/Research | Given Cave Seal Controls access code 35739 | -2/Research | Entered Access 35739 | -1/Access | Evolved 2 slots: Power x1, Utility x1 35742 | -1/Access | Loaded intel: 4 scanalyzer locations 35860 | -1/Access | Identified exit to Command 35860 | -1/Access | Targeted by mysterious "MATRIX" hacker. 35919 | -1/Access | Unchained authorized (DW-4LL) 35970 | -1/Access | Found Gamma Bomb Array 36317 | -1/Access | Destroyed 12 combat bots 36326 | -1/Access | Lost 4 parts (1p3u) 36396 | -1/Access | DW-4LL burst out of a wall 36401 | -1/Access | System corruption reached 10% 36410 | -1/Access | Destroyed 11 combat bots 36432 | -1/Access | System corruption reached 30% 36461 | -1/Access | Released all parts (1) 36463 | -1/Access | Crushed by falling debris 36491 | -1/Access | Lost 27 parts (1p6n11u9w) 36526 | -1/Access | Core integrity fell below 50% 36552 | -1/Access | Core integrity fell below 20% 36561 | -1/Access | Destroyed by S-43 Plague with Heavy Machine Gun Last Messages --------------- 36477_ Penetrated by Slug. 36486_ ALERT: Potential suspicious activity detected, Programmers report to Access Zone 9Z. 36491_ O-32 Director sends out distress signal. 36491_ O-32 Director: "IFF HANDSHAKE FAILED. SECURING TERMINAL." 36491_ Slug penetrates Door. 36491_ Slug penetrates Wall. 36494_ System corrupted: Matter fused (-9). 36494_ Slug penetrates Wall. 36502_ ALERT: Hostiles spotted, dispatching reinforcements to Terminal A017. 36509_ System corrupted: Heat flow error (+265). 36510_ Overheating: Energy bleed (-10). 36524_ ACYKD0FFQZSVILYLVSJG& :82OPXZP8 3DW 36539_ OVSCNS 5 Map ----- +----------------------------------------------------+ | ???????????????????????????????????????????# | | ???????????????????????????????????????????+ | | ???????????????????????????????????????????# | | ???????????????????????????????????????????# | | ???????????????????????????????????????????# | | ??????????????????????????????????????????? | | ???????????????????????????????????????????? | | ???????????????????????????????????????????? | | ????????????????????????????????????????????? | | ????????????????????????????????????????????? ## | | ??????????????????????????????????????????????*#?? | | ?????????????????????????????????????????????????? | | ?????????????????????????????????????????????????? | | ?????????????????????????????????????????????????? | | ?????????????????????????????????????????????????? | | ?????????????????????????????????????????????? | | ?????????????????????????????????????????????????? | | ?????????????????????????????????????????????????? | | ?????????????????????????????????????????????????? | | ?????????????????????????????????????????????????? | | ?????????????????????????????????????????????????? | | ?????????????????????????????????????????????????? | | ?????????????????????????????????????????????????? | | ?????????????????????????????????????????????????? | | ??????????##################?????????????????????? | | ??????????# / @ +?????????????????????? | | ??????????# s #?????????????????????? | | ??????????# ss sss #?????????????????????? | | ??????????# " sss" #?????????????????????? | | ??????????# """ s""" #?????????????????????? | | ??????????# """k """ #?????????????????????? | | ??????????# " " #?????????????????????? | | ??????????# #??????????????????#### | | ??????????# #??????????????????# | | ???###########+#############??????????????????# | | #?????????????????????# | | #?????????????????????? | | #??????????????????????! " | | ? #?????????????????????# | | ? " " ! #?????????????????????# | | ???""" """ #?????????????????????# ! | | ???""" """ #?????????????????????#### | | ????""" " ####????????????????????????? | | ????"" #???????????????????????????? | | ???? #?#####?????????????????????? | | ???? # #?????????????????????? | | ???? # ! #?????????>???????##### | | ????? + ] #?????????????????" | | ????? " # !#?????????????????" | | ?????? """" # #?????????????????" | +----------------------------------------------------+ Best States ------------- Heat Dissipation 102 Coolant Potential 100 Energy Generation 57 Energy Capacity 1720 Matter Stores 550 Matter Capacity 550 Sight Range 16 Robot Scan Range 18 Terrain Scan Range 24 Terrain Scan Density 85 Jamming Range 16 Cloak Strength 3 Power Amplification 30 EM Shielding 3 Corruption Containment 12 Corruption Block 15 Armor Coverage 1950 Resistance: KI 30 Resistance: TH 30 Resistance: EX 50 Resistance: EM 15 Core Shielding 30 Point Defense Rating 240 Weapon Cycling 20 Phase Shifting 15 Evasion (%) 55 Targeting Accuracy 12 Target Analysis 8 Core Analysis 11 Recoil Reduction 6 Kinecelleration 50 Salvage Targeting 3 Offensive Hacking 26 Defensive Hacking 12 Item Schematics ----------------- Combat Drone Bay | -7/Data Miner | Free Lgt. Regenerative Plating | -7/Data Miner | Free Cld. Cesium-ion Thruster | -7/Data Miner | Free Gravity Neutralizer | -7/Data Miner | Free Com. Ion Cannon | -7/Data Miner | Free Cmb. Gravmag System | -7/Data Miner | Free Imp. Focal Shield | -7/Data Miner | Free Enh. Gauss Cannon | -7/Data Miner | Free Focal Shield | -7/Data Miner | Free Remote Force Field | -7/Data Miner | Free Robot Schematics ------------------ R-10 Processor | -7/Data Miner | Free S-27 Virus | -7/Data Miner | Free G-47 Trooper | -7/Data Miner | Free W-25 Informer | -7/Data Miner | Free D-63 Destroyer | -7/Data Miner | Free I-36 Angel | -7/Data Miner | Free M-22 Extractor | -7/Data Miner | Free A-15 Conveyor | -7/Data Miner | Free Fabricated ------------ Nothing Repaired ---------- Enh. Autogun | 33% | -8/Materials Enh. Autogun | 53% | -8/Materials Imp. Terrain Scanner | 22% | -5/Factory Centrium Wheel | 37% | -4/Factory Centrium Wheel | 99% | -4/Factory | Corrupted Centrium Wheel | 67% | -4/Factory Scatter Rocket Array | 40% | -4/Factory Centrium Wheel | 81% | -4/Factory Rnf. Fission Core | 72% | -4/Factory Studied --------- Wheel | -8/Materials | Hacked Grenade Launcher | -8/Materials | Hacked Shock Bomb Launcher | -8/Materials | Hacked Imp. Grenade Launcher | -8/Materials | Hacked Com. Wheel | -8/Materials | Hacked Arm. Wheel | -8/Materials | Hacked Arm. Huge Wheel | -4/Factory | Hacked Centrium Wheel | -4/Factory | Hacked Railgun | -4/Factory | Hacked KE Penetrator | -4/Factory | Hacked Matter Neutralizer | -4/Factory | Hacked Rnf. Fission Core | -4/Factory | Hacked Imp. Heavy Treads | -4/Factory | Hacked Adv. Remote Datajack | -4/Factory | Hacked Alien Tech Used ----------------- None Achievements -------------- None Challenges ------------ None Game ------ Seed CatalystDispersalMask Manual? 0 Play Time 05:45:29 Cumulative 395.7 hours Start 2026.02.13 @ 19:57:57 End 2026.02.14 @ 02:01:08 Sessions 1 Manual Loads 0 Difficulty Rogue Special Mode None Game No. 318 Rogue 318 Adventurer 0 Explorer 0 Win Type - Total 2 Types 2/0/0/0/0/0/0/0/0/0 Lore% 64 Gallery% 69 Achievement% 54 Wizard Run 0 Options --------- Layout 1 ASCII 0 Keyboard 0 Movement Mouse Keybinds 0 Fullscreen 1 Font 32/SmallcapsGlow Map View 50x35 Zoom Use 0% Tactical HUD 1 Map Filters NONE Filters NONE Steam 1 RUN: 3a9b21d0-1cba-43ea-a2dd-968d13fb87e5